Workbook

Sheet Title Page
A1: Life-Cycle Analysis Supplementary Spreadsheet
A3: Jake Nease and T.A. Adams II
A4: Life Cycle Analyses of Bulk-Scale Solid Oxide Fuel Cell Power Plants
A5: This is a supplement showing all calculated life-cycle analysis results for the comparison of a NGCC plant to a natural gas-fuelled SOFC plant. Includes cases with and without transmission inefficiencies and carbon capture, resulting in a total of eight operating cases. Also includes the manfucaturing phase considerations for the SOFC stacks and balance of plant to be included in the final analysis, which is already accounted for in the NGCC cases.
A7: Method Used: ReCiPe 2008 (Updated 2013)
A8: M Goedkoop, R. Heijungs, M. Huijbregts, A. De Schryver, J. Struijs, R. van Zelm. Recipe 2008 First Edition (version 1.08). Ministerie van Volkshuivesting, Ruimtelijke Ordening en Milieubeheer: 2013.
A10: Perspectives Investigated: Individualist (I), Heirarchist (H) and Egalitarian (E)
A12: Tab Listing
A13: The following are the tabs (in order) included in this spreadsheet (click the description to zoom to the correct tab)
A15: Sources and Efficiencies -> List of power sources, fuel energy content and process efficiencies
A16: Mid-To-End Point Factors -> Table of conversion factors to obtain ReCiPe end-point impacts from mid-point inventory results
A17: US Domestic NG -> Summary of NG sources in the US, upstream processing and shipment emissions
A18: Case Descriptions -> Summary of each of the eight operating cases investigated (efficiencies, tags, etc.)
A19: SOFC Manufacturing -> Life cycle inventory and assesment of the fabrication of 1 kW of SOFC stacks and any associated plant accoutrements
A20: NGCC-1 -> Cradle To Grave Life cycle inventory and assesment of case NGCC-1 (no CCS, no transmission losses)
A21: NGCC-2 -> Cradle To Grave Life cycle inventory and assesment of case NGCC-2 (no CCS, includes transmission losses)
A22: NGCC-3 -> Cradle To Grave Life cycle inventory and assesment of case NGCC-3 (includes CCS, no transmission losses)
A23: NGCC-4 -> Cradle To Grave Life cycle inventory and assesment of case NGCC-4 (includes CCS, includes transmission losses)
A24: SOFC-1 -> Cradle To Grave Life cycle inventory and assesment of case SOFC-1 (no CCS, no transmission losses)
A25: SOFC-2 -> Cradle To Grave Life cycle inventory and assesment of case SOFC-2 (no CCS, includes transmission losses)
A26: SOFC-3 -> Cradle To Grave Life cycle inventory and assesment of case SOFC-3 (includes CCS, no transmission losses)
A27: SOFC-4 -> Cradle To Grave Life cycle inventory and assesment of case SOFC-4 (includes CCS, includes transmission losses)
A28: Monte Carlo Analysis -> Full histogram data and plots of the Monte Carlo sensitivity analyses for selected case studies
A30: Note that each tab contains a "help" button that will describe what information is being shown.
A31: Note that all inventories and calculated emissions are assumed to be released to the atmosphere.

Sheet Sources and Efficiencies
A1: Sources and Efficiences of Fuel Sources
A5: Electricity Source | B5: Thermal Efficiency (HHV) | C5: Assumed Fuel Source | D5: Heating Value Used | E5: Unit | F5: Reference | I5: References
A6: Coal | B6: 3.90E-01 | C6: Bituminous Coal | D6: 2.48E+01 | E6: MJ/kg | F6: [1] | I6: [1] | J6: L. Haslbeck, N.J. Kuehn, E.G. Lewis, L.L. Pinkerton, J. Simpson, M.J. Turner, E. Varghese, M.C. Woods. Cost and Performance Baseline for Fossil Energy Plants. Volume 1: Bituminous Coal and Natural Gas to Electricity Final Report. DOE/NETL-2010/1397. Revision 2: 2010.
A7: Oil | B7: 3.81E-01 | C7: Fuel Oil (From Crude) | D7: 4.20E+01 | E7: MJ/kg | F7: [2] | I7: [2] | J7: United States Environmental Protecion Agency. 2009 Boiler, Generator, Plant, State, PCA, eGRID Subregion, NERC Region, US, and Grid Loss (%) Data. 2009. Available online: http://www.epa.gov/cleanenergy/energy-resources/egrid/. Accessed November 2013.
A8: NG | B8: 5.02E-01 | C8: Natural Gas from Well | D8: 4.41E+01 | E8: MJ/kg | F8: [1] | I8: [3] | J8: D. Baldwin, M. Campbell, C. Ellis, M. Richards, A. Shenoy. MHR design, technology and applications. Energy Conversion and Management. 49 (2008) 1898-1901.
A9: Hydro | B9: 1.00E+00 | C9: Water (Free) | D9: 1.00E+00 | E9: N/A | F9: N/A | I9: [4] | J9: M.P. LaBar, A.S. Shenoy, W.A. Simon, E.M. Campbell. Status of the GT-MHR for Electricity Produciton. Proceedings of the World Nuclear Association Annual Sumposium. London, UK: 3 September, 2003.
A10: Nuclear | B10: 5.00E-01 | C10: Uranium-235 | D10: 2.29E+06 | E10: MJ/kg | F10: [3]-[5] | I10: [5] | J10: A.I. Kiryushin, N.G. Kodochigov, N.G. Kouzavkov, N.N. Ponomarev-Stepnoi, E.S. Gloushkov, V.N. Grebennik. Project of the GT-MHR high-temperature helium reactor with gas turbine. Nuclear Engineering and Design. 173 (1997) 119-129.
A11: Solar | B11: 1.00E+00 | C11: Solar Radiation (Free) | D11: 1.00E+00 | E11: N/A | F11: N/A
A12: Brown Coal | B12: 3.90E-01 | C12: Lignite | D12: 1.10E+01 | E12: MJ/kg | F12: [1]

Sheet Mid-To-End Point Factors
A1: ReCiPe Mid-To-End Point Factors
D5: Human health (DALY) | G5: Ecosystems (species.yr) | J5: Resources ($) | R5: I | S5: H | T5: E
C6: Perspective | D6: Individualist | E6: Hierarchical | F6: Egalitarian | G6: Individualist | H6: Hierarchical | I6: Egalitarian | J6: Individualist | K6: Hierarchical | L6: Egalitarian | O6: Endpoints | P6: Ecosystems | Q6: species.yr/p/yr | R6: 8.00E-04 | S6: 9.17E-04 | T6: 2.48E-03
A7: Midpoint impact category | B7: Unit | C7: Code | D7: HH_I | E7: HH_H | F7: HH_E | G7: ED_I | H7: ED_H | I7: ED_E | J7: RA_I | K7: RA_H | L7: RA_E | P7: Human health | Q7: DALY/p/yr | R7: 1.50E-02 | S7: 1.35E-02 | T7: 2.39E-02
A8: Climate change | B8: kg CO2 eq | C8: CC | D8: 1.19E-06 | E8: 1.40E-06 | F8: 3.51E-06 | G8: 7.93E-09 | H8: 7.93E-09 | I8: 1.87E-08 | J8: 0.00E+00 | K8: 0.00E+00 | L8: 0.00E+00 | P8: Resources | Q8: $/p/yr | R8: 9.85E+01 | S8: 2.45E+02 | T8: 2.45E+02
A9: Ozone depletion | B9: kg CFC-11 eq | C9: OD | D9: 4.13E-04 | E9: 1.76E-03 | F9: 1.76E-03 | G9: 0.00E+00 | H9: 0.00E+00 | I9: 0.00E+00 | J9: 0.00E+00 | K9: 0.00E+00 | L9: 0.00E+00
A10: Terrestrial acidification | B10: kg SO2 eq | C10: TA | D10: 0.00E+00 | E10: 0.00E+00 | F10: 0.00E+00 | G10: 1.52E-09 | H10: 5.80E-09 | I10: 1.42E-08 | J10: 0.00E+00 | K10: 0.00E+00 | L10: 0.00E+00 | P10: Unweighted | Q10: pts/species | R10: 1.25E+06 | S10: 1.09E+06 | T10: 4.03E+05
A11: Freshwater eutrophication | B11: kg P eq | C11: FE | D11: 0.00E+00 | E11: 0.00E+00 | F11: 0.00E+00 | G11: 4.44E-08 | H11: 4.44E-08 | I11: 4.44E-08 | J11: 0.00E+00 | K11: 0.00E+00 | L11: 0.00E+00 | Q11: pts/DALY | R11: 6.67E+04 | S11: 7.41E+04 | T11: 4.18E+04
A12: Human toxicity | B12: kg 1,4-DB eq | C12: HT | D12: 7.00E-07 | E12: 7.00E-07 | F12: 7.00E-07 | G12: 0.00E+00 | H12: 0.00E+00 | I12: 0.00E+00 | J12: 0.00E+00 | K12: 0.00E+00 | L12: 0.00E+00 | Q12: pts/$ | R12: 1.02E+01 | S12: 4.08E+00 | T12: 4.08E+00
A13: Photochemical oxidant formation | B13: kg NMVOC | C13: POF | D13: 3.90E-08 | E13: 3.90E-08 | F13: 3.90E-08 | G13: 0.00E+00 | H13: 0.00E+00 | I13: 0.00E+00 | J13: 0.00E+00 | K13: 0.00E+00 | L13: 0.00E+00
A14: Particulate matter formation | B14: kg PM10 eq | C14: PMF | D14: 2.60E-04 | E14: 2.60E-04 | F14: 2.60E-04 | G14: 0.00E+00 | H14: 0.00E+00 | I14: 0.00E+00 | J14: 0.00E+00 | K14: 0.00E+00 | L14: 0.00E+00 | P14: Weighted | Q14: pts/species | R14: 5.00E+05 | S14: 4.36E+05 | T14: 1.61E+05
A15: Terrestrial ecotoxicity | B15: kg 1,4-DB eq | C15: TET | D15: 0.00E+00 | E15: 0.00E+00 | F15: 0.00E+00 | G15: 1.51E-07 | H15: 1.51E-07 | I15: 1.51E-07 | J15: 0.00E+00 | K15: 0.00E+00 | L15: 0.00E+00 | Q15: pts/DALY | R15: 2.67E+04 | S15: 2.96E+04 | T15: 1.67E+04
A16: Freshwater ecotoxicity | B16: kg 1,4-DB eq | C16: FET | D16: 0.00E+00 | E16: 0.00E+00 | F16: 0.00E+00 | G16: 8.61E-10 | H16: 8.61E-10 | I16: 8.61E-10 | J16: 0.00E+00 | K16: 0.00E+00 | L16: 0.00E+00 | Q16: pts/$ | R16: 2.03E+00 | S16: 8.16E-01 | T16: 8.16E-01
A17: Marine ecotoxicity | B17: kg 1,4-DB eq | C17: MET | D17: 0.00E+00 | E17: 0.00E+00 | F17: 0.00E+00 | G17: 1.76E-10 | H17: 1.76E-10 | I17: 1.76E-10 | J17: 0.00E+00 | K17: 0.00E+00 | L17: 0.00E+00
A18: Ionising radiation | B18: kg U235 eq | C18: IR | D18: 1.64E-08 | E18: 1.64E-08 | F18: 1.64E-08 | G18: 0.00E+00 | H18: 0.00E+00 | I18: 0.00E+00 | J18: 0.00E+00 | K18: 0.00E+00 | L18: 0.00E+00
A19: Agricultural land occupation | B19: m2a | C19: ALO | D19: 0.00E+00 | E19: 0.00E+00 | F19: 0.00E+00 | G19: 9.77E-09 | H19: 1.63E-08 | I19: 1.63E-08 | J19: 0.00E+00 | K19: 0.00E+00 | L19: 0.00E+00
A20: Urban land occupation | B20: m2a | C20: ULO | D20: 1.76E-08 | E20: 2.07E-08 | F20: 2.07E-08 | G20: 0.00E+00 | H20: 0.00E+00 | I20: 0.00E+00 | J20: 0.00E+00 | K20: 0.00E+00 | L20: 0.00E+00
A21: Natural land transformation | B21: m2 | C21: NLT | D21: 0.00E+00 | E21: 0.00E+00 | F21: 0.00E+00 | G21: 0.00E+00 | H21: 0.00E+00 | I21: 0.00E+00 | J21: 0.00E+00 | K21: 0.00E+00 | L21: 0.00E+00
A22: Fossil depletion | B22: kg oil eq | C22: FRD | D22: 0.00E+00 | E22: 0.00E+00 | F22: 0.00E+00 | G22: 0.00E+00 | H22: 0.00E+00 | I22: 0.00E+00 | J22: 5.17E-02 | K22: 1.65E-01 | L22: 1.65E-01
A23: Metal depletion | B23: kg Fe eq | C23: MRD | D23: 0.00E+00 | E23: 0.00E+00 | F23: 0.00E+00 | G23: 0.00E+00 | H23: 0.00E+00 | I23: 0.00E+00 | J23: 7.15E-02 | K23: 7.15E-02 | L23: 7.15E-02
A25: Points per midpoint unit (DALY, Species.YR, $)
D27: Human health (points/DALY) | G27: Ecosystems (points/species/yr) | J27: Resources (points/$)
C28: Perspective | D28: Individualist | E28: Hierarchical | F28: Egalitarian | G28: Individualist | H28: Hierarchical | I28: Egalitarian | J28: Individualist | K28: Hierarchical | L28: Egalitarian
A29: Midpoint impact category | B29: Unit | C29: Code | D29: HH_I | E29: HH_H | F29: HH_E | G29: ED_I | H29: ED_H | I29: ED_E | J29: RA_I | K29: RA_H | L29: RA_E
A30: Climate change | B30: kg CO2 eq | C30: CC | D30: 3.17E-02 | E30: 4.15E-02 | F30: 5.87E-02 | G30: 3.96E-03 | H30: 3.46E-03 | I30: 3.02E-03 | J30: 0.00E+00 | K30: 0.00E+00 | L30: 0.00E+00
A31: Ozone depletion | B31: kg CFC-11 eq | C31: OD | D31: 1.10E+01 | E31: 5.21E+01 | F31: 2.95E+01 | G31: 0.00E+00 | H31: 0.00E+00 | I31: 0.00E+00 | J31: 0.00E+00 | K31: 0.00E+00 | L31: 0.00E+00
A32: Terrestrial acidification | B32: kg SO2 eq | C32: TA | D32: 0.00E+00 | E32: 0.00E+00 | F32: 0.00E+00 | G32: 7.59E-04 | H32: 2.53E-03 | I32: 2.29E-03 | J32: 0.00E+00 | K32: 0.00E+00 | L32: 0.00E+00
A33: Freshwater eutrophication | B33: kg P eq | C33: FE | D33: 0.00E+00 | E33: 0.00E+00 | F33: 0.00E+00 | G33: 2.22E-02 | H33: 1.94E-02 | I33: 7.16E-03 | J33: 0.00E+00 | K33: 0.00E+00 | L33: 0.00E+00
A34: Human toxicity | B34: kg 1,4-DB eq | C34: HT | D34: 1.87E-02 | E34: 2.07E-02 | F34: 1.17E-02 | G34: 0.00E+00 | H34: 0.00E+00 | I34: 0.00E+00 | J34: 0.00E+00 | K34: 0.00E+00 | L34: 0.00E+00
A35: Photochemical oxidant formation | B35: kg NMVOC | C35: POF | D35: 1.04E-03 | E35: 1.16E-03 | F35: 6.53E-04 | G35: 0.00E+00 | H35: 0.00E+00 | I35: 0.00E+00 | J35: 0.00E+00 | K35: 0.00E+00 | L35: 0.00E+00
A36: Particulate matter formation | B36: kg PM10 eq | C36: PMF | D36: 6.93E+00 | E36: 7.70E+00 | F36: 4.35E+00 | G36: 0.00E+00 | H36: 0.00E+00 | I36: 0.00E+00 | J36: 0.00E+00 | K36: 0.00E+00 | L36: 0.00E+00
A37: Terrestrial ecotoxicity | B37: kg 1,4-DB eq | C37: TET | D37: 0.00E+00 | E37: 0.00E+00 | F37: 0.00E+00 | G37: 7.53E-02 | H37: 6.57E-02 | I37: 2.43E-02 | J37: 0.00E+00 | K37: 0.00E+00 | L37: 0.00E+00
A38: Freshwater ecotoxicity | B38: kg 1,4-DB eq | C38: FET | D38: 0.00E+00 | E38: 0.00E+00 | F38: 0.00E+00 | G38: 4.30E-04 | H38: 3.76E-04 | I38: 1.39E-04 | J38: 0.00E+00 | K38: 0.00E+00 | L38: 0.00E+00
A39: Marine ecotoxicity | B39: kg 1,4-DB eq | C39: MET | D39: 0.00E+00 | E39: 0.00E+00 | F39: 0.00E+00 | G39: 8.81E-05 | H39: 7.68E-05 | I39: 2.84E-05 | J39: 0.00E+00 | K39: 0.00E+00 | L39: 0.00E+00
A40: Ionising radiation | B40: kg U235 eq | C40: IR | D40: 4.37E-04 | E40: 4.86E-04 | F40: 2.74E-04 | G40: 0.00E+00 | H40: 0.00E+00 | I40: 0.00E+00 | J40: 0.00E+00 | K40: 0.00E+00 | L40: 0.00E+00
A41: Agricultural land occupation | B41: m2a | C41: ALO | D41: 0.00E+00 | E41: 0.00E+00 | F41: 0.00E+00 | G41: 4.88E-03 | H41: 7.10E-03 | I41: 2.63E-03 | J41: 0.00E+00 | K41: 0.00E+00 | L41: 0.00E+00
A42: Urban land occupation | B42: m2a | C42: ULO | D42: 4.70E-04 | E42: 6.14E-04 | F42: 3.47E-04 | G42: 0.00E+00 | H42: 0.00E+00 | I42: 0.00E+00 | J42: 0.00E+00 | K42: 0.00E+00 | L42: 0.00E+00
A43: Natural land transformation | B43: m2 | C43: NLT | D43: 0.00E+00 | E43: 0.00E+00 | F43: 0.00E+00 | G43: 0.00E+00 | H43: 0.00E+00 | I43: 0.00E+00 | J43: 0.00E+00 | K43: 0.00E+00 | L43: 0.00E+00
A44: Fossil depletion | B44: kg oil eq | C44: FRD | D44: 0.00E+00 | E44: 0.00E+00 | F44: 0.00E+00 | G44: 0.00E+00 | H44: 0.00E+00 | I44: 0.00E+00 | J44: 1.05E-01 | K44: 1.35E-01 | L44: 1.35E-01
A45: Metal depletion | B45: kg Fe eq | C45: MRD | D45: 0.00E+00 | E45: 0.00E+00 | F45: 0.00E+00 | G45: 0.00E+00 | H45: 0.00E+00 | I45: 0.00E+00 | J45: 1.45E-01 | K45: 5.84E-02 | L45: 5.84E-02
A47: Legend
A48: NMVOC | B48: Non-methane volatile organic compounds
A49: DB | B49: Dichlorobenzene
A50: PM10 | B50: Particulate matter with diameter 10 micro meters
A51: CFC-11 | B51: Refrigerant R-11 [Chloroflourocarbon]
A54: References
A55: [1] | B55: M Goedkoop, R. Heijungs, M. Huijbregts, A. De Schryver, J. Struijs, R. van Zelm. Recipe 2008 First Edition (version 1.08). Ministerie van Volkshuivesting, Ruimtelijke Ordening en Milieubeheer: 2013.

Sheet US Domestic NG
A1: Upstream Natural Gas Emissions
A5: Gas consumption profile | B5: Domestic | C5: 98%
B6: Imported | C6: 2%
A8: Natural Gas GHG emissions stemming from acquisition (wellheads), transportation and total (kg/MMBtu) | D8: Emissions - Acquisition | G8: Emissions - Transport | J8: Emissions - Total
D9: CO2 | E9: N2O | F9: CH4 | G9: CO2 | H9: N2O | I9: CH4 | J9: CO2 | K9: N2O | L9: CH4
A10: Conventional | B10: Onshore | C10: 2.45E-01 | D10: 3.26E+00 | E10: 9.66E-05 | F10: 3.72E-01 | G10: 4.76E-01 | H10: 9.17E-06 | I10: 9.69E-02 | J10: 3.74E+00 | K10: 1.06E-04 | L10: 4.69E-01
B11: Associated | C11: 1.25E-01 | D11: 2.29E+00 | E11: 6.42E-05 | F11: 1.28E-01 | G11: 4.76E-01 | H11: 9.17E-06 | I11: 9.69E-02 | J11: 2.77E+00 | K11: 7.34E-05 | L11: 2.25E-01
B12: Offshore | C12: 7.00E-02 | D12: 2.44E+00 | E12: 1.15E-04 | F12: 4.40E-02 | G12: 4.76E-01 | H12: 9.17E-06 | I12: 9.39E-02 | J12: 2.92E+00 | K12: 1.24E-04 | L12: 1.38E-01
A13: Unconventional | B13: Tight | C13: 3.10E-01 | D13: 2.51E+00 | E13: 7.14E-05 | F13: 3.70E-01 | G13: 4.76E-01 | H13: 9.17E-06 | I13: 9.69E-02 | J13: 2.99E+00 | K13: 8.06E-05 | L13: 4.67E-01
B14: Shale | C14: 1.60E-01 | D14: 2.65E+00 | E14: 7.89E-05 | F14: 3.66E-01 | G14: 4.76E-01 | H14: 9.17E-06 | I14: 9.69E-02 | J14: 3.13E+00 | K14: 8.81E-05 | L14: 4.63E-01
B15: CBM | C15: 9.00E-02 | D15: 2.47E+00 | E15: 7.03E-05 | F15: 1.30E-01 | G15: 4.76E-01 | H15: 9.17E-06 | I15: 9.69E-02 | J15: 2.95E+00 | K15: 7.95E-05 | L15: 2.27E-01
A17: Offshore | B17: LNG | C17: 1.00E+00 | D17: 1.33E+01 | E17: 1.55E-04 | F17: 1.26E-01 | G17: 4.76E-01 | H17: 9.17E-06 | I17: 9.69E-02 | J17: 1.38E+01 | K17: 1.64E-04 | L17: 2.23E-01
A20: Unit conversion and gas weighted average GHG emissions | F20: Unit Conversions
B21: Weighted Results | C21: kg/MMBtu | D21: g/MJ | F21: 1.06E+03 | G21: J/Btu
A22: On-Shore | B22: CO2 | C22: 3.16E+00 | D22: 2.99E+00 | F22: 3.60E+03 | G22: MJ/MW h
B23: N2O | C23: 9.00E-05 | D23: 8.53E-05 | F23: 4.41E+01 | G23: MJ/kg NG
B24: CH4 | C24: 3.92E-01 | D24: 3.71E-01 | F24: 9.98E+02 | G24: kg Water/m3
F25: 8.70E-01 | G25: Recovery from well
A26: Off-Shore | B26: CO2 | C26: 1.38E+01 | D26: 1.31E+01
B27: N2O | C27: 1.64E-04 | D27: 1.56E-04
B28: CH4 | C28: 2.23E-01 | D28: 2.11E-01
A30: MIXED | B30: CO2 | C30: 3.35E+00 | D30: 3.17E+00
B31: N2O | C31: 9.13E-05 | D31: 8.66E-05
B32: CH4 | C32: 3.89E-01 | D32: 3.69E-01
A36: Pollutant Emissions | B36: Domestic Gas | H36: Imported Gas | I36: Mixed Gas
A37: Emission Type (kg/kg NG) | B37: Onshore | C37: Associated | D37: Offshore | E37: Tight | F37: Shale | G37: CBM | H37: Offshore | I37: Domestic Mix | J37: Overall Mix (kg/kg) | K37: Overall Mix (g/MJ)
A38: Pb | B38: 3.00E-09 | C38: 3.90E-09 | D38: 6.90E-09 | E38: 8.58E-09 | F38: 1.39E-08 | G38: 1.52E-08 | H38: 1.17E-08 | I38: 7.96E-09 | J38: 8.02E-09 | K38: 1.72E-07
A39: Hg | B39: 1.73e-10 | C39: 1.97E-10 | D39: 4.60E-10 | E39: 4.02E-10 | F39: 6.76E-10 | G39: 5.03E-10 | H39: 8.29E-10 | I39: 3.77E-10 | J39: 3.85E-10 | K39: 8.24E-09
A40: NH3 | B40: 8.46E-08 | C40: 8.70E-08 | D40: 8.14E-08 | E40: 1.28E-07 | F40: 2.67E-07 | G40: 1.18E-07 | H40: 6.59E-04 | I40: 1.30E-07 | J40: 1.20E-05 | K40: 2.56E-04
A41: CO | B41: 6.54E-04 | C41: 5.40E-04 | D41: 2.21E-04 | E41: 5.43E-04 | F41: 6.03E-04 | G41: 6.95E-04 | H41: 9.25E-04 | I41: 5.70E-04 | J41: 5.77E-04 | K41: 1.23E-02
A42: NOx | B42: 2.35E-03 | C42: 2.18E-03 | D42: 1.79E-03 | E42: 2.21E-03 | F42: 2.31E-03 | G42: 2.40E-03 | H42: 1.62E-03 | I42: 2.24E-03 | J42: 2.23E-03 | K42: 4.77E-02
A43: SOx | B43: 7.24E-05 | C43: 7.39E-05 | D43: 7.78E-05 | E43: 1.12E-04 | F43: 2.39E-04 | G43: 9.47E-05 | H43: 1.79E-04 | I43: 1.14E-04 | J43: 1.15E-04 | K43: 2.46E-03
A44: NMVOC | B44: 1.52E-04 | C44: 1.28E-04 | D44: 4.67E-05 | E44: 1.25E-04 | F44: 1.41E-04 | G44: 1.57E-04 | H44: 9.05E-05 | I44: 1.32E-04 | J44: 1.31E-04 | K44: 2.80E-03
A45: Dust | B45: 2.14E-05 | C45: 2.09E-05 | D45: 1.51E-05 | E45: 2.80E-05 | F45: 3.95E-05 | G45: 4.31E-05 | H45: 4.55E-05 | I45: 2.78E-05 | J45: 2.81E-05 | K45: 6.01E-04
A46: Water Consumed | B46: 7.00E-01 | C46: 7.00E-01 | D46: 5.00E-02 | E46: 6.28E-01 | F46: 1.60E+00 | G46: 9.00E-02 | H46: 2.00E-01 | I46: 7.21E-01 | J46: 7.12E-01 | K46: 1.52E+01
A47: % Mix of Origin | B47: 2.45E-01 | C47: 1.25E-01 | D47: 7.00E-02 | E47: 3.10E-01 | F47: 1.60E-01 | G47: 9.00E-02 | H47: 1.00E+00
A50: References
A51: [1] | B51: L. Drauker, R. Bhander, B. Bennett, T. Davis, R. Eckard, W. Ellis, J. Kauffman, J. Littlefield, A. Malone, R. Munson, M. Nippert, M. Ramezan, R. Bromiley. Life Cycle Analysis: Natural Gas Combined Cycle (NGCC) Power Plant. DOE/NETL-403-110509: 2010.
A52: [2] | B52: T.J. Skone, J. Littlefield, J. Marriott. Life Cycle Greenhouse Gas Inventory of Natural Gas Extraction, Delivery and Electricity Production.
A53: [3] | B53: United States Environmental Protecion Agency. 2009 Boiler, Generator, Plant, State, PCA, eGRID Subregion, NERC Region, US, and Grid Loss (%) Data. 2009. Available online: http://www.epa.gov/cleanenergy/energy-resources/egrid/. Accessed November 2013.

Sheet Case descriptions
A1: Case Descriptions
A5: CASE | B5: Description | C5: TML? | D5: CCS? | E5: ƞ Plant | F5: ƞ Transmission | G5: ƞ Overall
A6: SOFC Manufacturing | B6: Manufacturing Stage of SOFC | C6: N/A | D6: N/A | E6: N/A | F6: N/A | G6: N/A
A7: NGCC-1 | B7: NGCC without CCS WITHOUT TML | C7: No | D7: No | E7: 50.2% | F7: 100.0% | G7: 50.2%
A8: NGCC-2 | B8: NGCC without CCS WITH TML | C8: Yes | D8: No | E8: 50.2% | F8: 93.0% | G8: 46.7%
A9: NGCC-3 | B9: NGCC with CCS WITHOUT TML | C9: No | D9: Yes | E9: 42.8% | F9: 100.0% | G9: 42.8%
A10: NGCC-4 | B10: NGCC with CCS WITH TML | C10: Yes | D10: Yes | E10: 42.8% | F10: 93.0% | G10: 39.8%
A11: SOFC-1 | B11: SOFC without CCS WITHOUT TML | C11: No | D11: No | E11: 65.6% | F11: 100.0% | G11: 65.6%
A12: SOFC-2 | B12: SOFC without CCS WITH TML | C12: Yes | D12: No | E12: 65.6% | F12: 93.0% | G12: 61.0%
A13: SOFC-3 | B13: SOFC with CCS WITHOUT TML | C13: No | D13: Yes | E13: 64.8% | F13: 100.0% | G13: 64.8%
A14: SOFC-4 | B14: SOFC with CCS WITH TML | C14: Yes | D14: Yes | E14: 64.8% | F14: 93.0% | G14: 60.3%
A17: References
A18: [1] | B18: L. Haslbeck, N.J. Kuehn, E.G. Lewis, L.L. Pinkerton, J. Simpson, M.J. Turner, E. Varghese, M.C. Woods. Cost and Performance Baseline for Fossil Energy Plants. Volume 1: Bituminous Coal and Natural Gas to Electricity Final Report. DOE/NETL-2010/1397. Revision 2: 2010.
A19: [2] | B19: J. Nease, T.A. Adams II, Systems for peaking power with 100% CO2 capture by integration of solid oxide fuel cells with compressed air energy storage. J. Power Sources. 228 (2013) 281-293.
A20: [3] | B20: T.A. Adams II, J. Nease, D. Tucker, P. Barton, Energy conversion with solid oxide fuel cell systems: short and long term outlooks. Ind. Eng. Chem. Res. 52 (2013) 3089-3111.
A21: [4] | B21: T.A. Adams II, P. Barton, High-efficiency power production from natural gas with carbon capture. J. Power Sources. 195 (2010) 1971-1983.
A23: Nomenclature
A24: CCS | B24: Carbon capture and sequestration
A25: TML | B25: Transmission losses (assumed to be 7%)
A26: η | B26: System efficiency

Sheet SOFC Manufacturing
A1: SOFC Manufacturing Step
A5: Unit Basis | B5: Unit
A6: 1.00E+00 | B6: kW SOFC Stacks
F7: Flow Inventory
A8: Energy Requirements | F8: Inputs
A9: Step | B9: Energy (MJ) | F9: Flow | G9: Flow property | H9: Unit | I9: Amount | J9: Flow type
A10: SOFC Materials Prep | B10: 3.54E+03 | F10: Chromium: 25.5% (chromite); 11.6% (crude ore) | G10: Mass | H10: kg | I10: 2.68E+01 | J10: Resource (in-ground)
A11: BoP Materials Prep | B11: 2.47E+03 | F11: Coal (hard) | G11: Mass | H11: kg | I11: 2.83E+02 | J11: Resource (in-ground)
A12: SOFC Fabrication | B12: 3.88E+01 | F12: Iron: 46% (ore); 25% (crude ore) | G12: Mass | H12: kg | I12: 6.54E+01 | J12: Resource (in-ground)
A13: BoP Fabrication | B13: 1.12E+02 | F13: Natural Gas (44.1 MJ/kg) | G13: Mass | H13: kg | I13: 6.49E+01 | J13: Resource (in-ground)
A14: Total | B14: =SUM(B10:B13) -> 6.17E+03 | F14: Nickel: 1.13% (sulfide); Ni 0.76% and Cu 0.76% (crude ore) | G14: Mass | H14: kg | I14: 8.75E+00 | J14: Resource (in-ground)
F15: Oil (crude) | G15: Mass | H15: kg | I15: 4.30E+00 | J15: Resource (in-ground)
A16: Electricity Mix | F16: Uranium (mined) | G16: Mass | H16: kg | I16: 1.09E-03 | J16: Resource (in-ground)
A17: Source | B17: Fraction
A18: Coal | B18: 4.45E-01 | F18: Outputs
A19: Oil | B19: 1.12E-02 | F19: Flow | G19: Flow property | H19: Unit | I19: Amount | J19: Flow type
A20: Gas | B20: 2.33E-01 | F20: Carbon Dioxide (CO2) | G20: Mass | H20: kg | I20: 9.44E+02 | J20: Emission (to air) | M20: =I20/87.6 -> 1.08E+01
A21: Hydro | B21: 6.80E-02 | F21: Carbon Monoxide (CO) | G21: Mass | H21: kg | I21: 2.87E-01 | J21: Emission (to air) | M21: =I21/87.6 -> 3.28E-03
A22: Nuclear | B22: 2.02E-01 | F22: Dinitrogen Monoxide (N2O) | G22: Mass | H22: kg | I22: 1.40E-02 | J22: Emission (to air) | M22: 1.60E-04
A23: Other Renewables | B23: 3.64E-02 | F23: Methane (CH4) | G23: Mass | H23: kg | I23: 1.87E-02 | J23: Emission (to air) | M23: 2.13E-04
A24: TOTAL | B24: 9.96E-01 | F24: Nitrogen Oxides (NOx) | G24: Mass | H24: kg | I24: 8.71E-01 | J24: Emission (to air) | M24: 9.94E-03
F25: Particulates > 2.5 μm and < 10 μm | G25: Mass | H25: kg | I25: 1.85E+00 | J25: Emission (to air) | M25: 2.11E-02
A26: Average Emission Information | F26: SOFC STACK (1 kW + BoP) | G26: Number of items | H26: Item(s) | I26: 1.00E+00 | J26: Product | M26: 1.14E-02
A27: Pollutant | B27: Amount (g/MJ) | F27: Sulfate | G27: Mass | H27: kg | I27: 8.93E-01 | J27: Emission (to air) | M27: 1.02E-02
A28: CO | B28: 4.66E-02 | F28: Sulfur dioxide (SO2) | G28: Mass | H28: kg | I28: 2.39E+00 | J28: Emission (to air) | M28: 2.73E-02
A29: CO2 | B29: 1.53E+02
A30: Methane | B30: 3.03E-03
A31: Particulates | B31: 3.00E-01
A32: N2O | B32: 2.28E-03 | F32: Mid-Point Characterizations | G32: Amount
A33: Nitrous Oxides | B33: 1.41E-01 | F33: Mid-Point Inventory | G33: Egalitarian (E) | H33: Heirarchist (H) | I33: Individualist (I) | J33: Units
A34: Sulphur Oxides | B34: 3.88E-01 | F34: Agricultural Land Occupation - ALOP | G34: 0.00E+00 | H34: 0.00E+00 | I34: 0.00E+00 | J34: m2
A35: Phosphates | B35: 0.00E+00 | F35: Climate Change - GWP | G35: 9.46E+02 | H35: 9.49E+02 | I35: 9.50E+02 | J35: kg CO2-Eq
A36: Sulphates | B36: 1.45E-01 | F36: Fossil Depletion - FDP | G36: 1.93E+02 | H36: 1.93E+02 | I36: 1.93E+02 | J36: kg oil-Eq
F37: Freshwater Ecotoxicity - FETP | G37: 0.00E+00 | H37: 0.00E+00 | I37: 0.00E+00 | J37: kg 1,4-DCB-Eq
A38: Non-Renewable Fuel Requirements | F38: Freshwater Eutrophication - FEP | G38: 0.00E+00 | H38: 0.00E+00 | I38: 0.00E+00 | J38: kg P-Eq
A39: Fuel Source | B39: Amount (kg/kW SOFC) | F39: Human Toxicity - HTP | G39: 0.00E+00 | H39: 0.00E+00 | I39: 0.00E+00 | J39: kg 1,4-DCB-Eq
A40: Coal | B40: 4.60E-02 | F40: Ionising Radiation - IRP_HE | G40: 0.00E+00 | H40: 0.00E+00 | I40: 0.00E+00 | J40: kg U235-Eq
A41: Oil | B41: 6.98E-04 | F41: Marine Ecotoxicity - METP | G41: 0.00E+00 | H41: 0.00E+00 | I41: 0.00E+00 | J41: kg 1,4-DCB-Eq
A42: Natural Gas | B42: 1.05E-02 | F42: Marine Eutrophication - MEP | G42: 3.39E-02 | H42: 3.39E-02 | I42: 3.39E-02 | J42: kg N-Eq
A43: Uranium (mined) | B43: 1.77E-07 | F43: Metal Depletion - MDP | G43: 8.42E+02 | H43: 8.42E+02 | I43: 8.42E+02 | J43: kg Fe-Eq
F44: Natural land Transformation - NLTP | G44: 0.00E+00 | H44: 0.00E+00 | I44: 0.00E+00 | J44: m2
F45: Ozone Depletion - ODP | G45: 0.00E+00 | H45: 0.00E+00 | I45: 0.00E+00 | J45: kg CFC-11-Eq
F46: Particulate Matter Formation - PMFP | G46: 2.52E+00 | H46: 2.52E+00 | I46: 2.52E+00 | J46: kg PM10-Eq
F47: Photochemical Oxidant Formation - POFP | G47: 1.08E+00 | H47: 1.08E+00 | I47: 1.08E+00 | J47: kg NMVOC
F48: Terrestrial Acidification - TAP | G48: 3.01E+00 | H48: 2.88E+00 | I48: 2.82E+00 | J48: kg SO2-Eq
F49: Terrestrial Ecotoxicity - TETP | G49: 0.00E+00 | H49: 0.00E+00 | I49: 0.00E+00 | J49: kg 1,4-DCB-Eq
F50: Urban Land Occupation - ULOP | G50: 0.00E+00 | H50: 0.00E+00 | I50: 0.00E+00 | J50: m2
F51: Water Depletion - WDP | G51: 0.00E+00 | H51: 0.00E+00 | I51: 0.00E+00 | J51: m3
F55: End-Point Characterizations | G55: Amount
F56: End-Point Category | G56: Egalitarian (E) | H56: Heirarchist (H) | I56: Individualist (I) | J56: Units
F57: Ecosystem Quality - Agricultural Land Occupation | G57: 0.00E+00 | H57: 0.00E+00 | I57: 0.00E+00 | J57: points
F58: Ecosystem Quality - Climate Change | G58: 2.86E+00 | H58: 3.28E+00 | I58: 3.76E+00 | J58: points
F59: Ecosystem Quality - Freshwater Ecotoxicity | G59: 0.00E+00 | H59: 0.00E+00 | I59: 0.00E+00 | J59: points
F60: Ecosystem Quality - Freshwater Eutrophication | G60: 0.00E+00 | H60: 0.00E+00 | I60: 0.00E+00 | J60: points
F61: Ecosystem Quality - Marine Ecotoxicity | G61: 0.00E+00 | H61: 0.00E+00 | I61: 0.00E+00 | J61: points
F62: Ecosystem Quality - Natural Land Transformation | G62: 0.00E+00 | H62: 0.00E+00 | I62: 0.00E+00 | J62: points
F63: Ecosystem Quality - Terrestrial Acidification | G63: 6.90E-03 | H63: 7.29E-03 | I63: 2.14E-03 | J63: points
F64: Ecosystem Quality - Terrestrial Ecotoxicity | G64: 0.00E+00 | H64: 0.00E+00 | I64: 0.00E+00 | J64: points
F65: Ecosystem Quality - Total | G65: 2.86E+00 | H65: 3.29E+00 | I65: 3.77E+00 | J65: points
F66: Ecosystem Quality - Urban Land Occupation | G66: 0.00E+00 | H66: 0.00E+00 | I66: 0.00E+00 | J66: points
F67: Human Health - Climate Change | G67: 5.56E+01 | H67: 3.94E+01 | I67: 3.01E+01 | J67: points
F68: Human Health - Human Toxicity | G68: 0.00E+00 | H68: 0.00E+00 | I68: 0.00E+00 | J68: points
F69: Human Health - Ionising Radiation | G69: 0.00E+00 | H69: 0.00E+00 | I69: 0.00E+00 | J69: points
F70: Human Health - Ozone Depletion | G70: 0.00E+00 | H70: 0.00E+00 | I70: 0.00E+00 | J70: points
F71: Human Health - Particulate Matter Formation | G71: 1.10E+01 | H71: 1.94E+01 | I71: 1.75E+01 | J71: points
F72: Human Health - Photochemical Oxidant Formation | G72: 7.04E-04 | H72: 1.25E-03 | I72: 1.12E-03 | J72: points
F73: Human Health - Total | G73: 6.66E+01 | H73: 5.88E+01 | I73: 4.76E+01 | J73: points
F74: Resources - Fossil Depletion | G74: 2.60E+01 | H74: 2.60E+01 | I74: 2.02E+01 | J74: points
F75: Resources - Metal Depletion | G75: 0.00E+00 | H75: 0.00E+00 | I75: 0.00E+00 | J75: points
F76: Resources - Total | G76: 2.60E+01 | H76: 2.60E+01 | I76: 2.02E+01 | J76: points
F77: Total | G77: 9.55E+01 | H77: 8.81E+01 | I77: 7.16E+01 | J77: points
A81: References
A82: [1] | B82: V. Karakoussis, N.P. Brandon, M. Leach, R. van der Vorst. The environmental impact of manufacturing planar and tubular solid oxide fuel cells. Journal of Power Sources. 101 (2001) 10-26.
A83: [2] | B83: United States Environmental Protecion Agency. 2009 Boiler, Generator, Plant, State, PCA, eGRID Subregion, NERC Region, US, and Grid Loss (%) Data. 2009. Available online: http://www.epa.gov/cleanenergy/energy-resources/egrid/. Accessed November 2013.

Sheet NGCC-1
A1: NGCC - Case 1
A5: Plant efficiency | B5: 50.20%
A6: Carbon Capture? | B6: NO
A7: Transmission Losses? | B7: NO
F8: Flow Inventory
A9: Emissions Data - NO CCS - AVERAGE Gas | F9: Inputs
A10: GHG Emissions - kg/MW-h Electricity Delivered | F10: Flow | G10: Flow property | H10: Unit | I10: Amount | J10: Flow type
A11: CO2 | B11: 3.65E+02 | F11: natural gas (44.1 MJ/kg) | G11: Mass | H11: kg | I11: 1.87E+02 | J11: Resource (in-ground)
A12: N2O | B12: 1.40E-05 | F12: Water (unspecified natural origin) | G12: Volume | H12: m3 | I12: 1.10E+02 | J12: Resource (in-ground)
A13: CH4 | B13: 3.42E-04
A14: Pollutants - kg/MW-h Electricity Delivered
A15: Pb | B15: 2.53E-06 | F15: Outputs
A16: Hg | B16: 2.25E-08 | F16: Flow | G16: Flow property | H16: Unit | I16: Amount | J16: Flow type
A17: NH3 | B17: 1.75E-02 | F17: Ammonia (NH3) | G17: Mass | H17: kg | I17: 1.93E-02 | J17: Emission (to air)
A18: CO | B18: 2.92E-03 | F18: Carbon Dioxide (CO2) | G18: Mass | H18: kg | I18: 3.88E+02 | J18: Emission (to air)
A19: NOx | B19: 2.84E-02 | F19: Carbon Monoxide (CO) | G19: Mass | H19: kg | I19: 9.13E-02 | J19: Emission (to air)
A20: SOx | B20: 1.31E-03 | F20: Dinitrogen Monoxide (N2O) | G20: Mass | H20: kg | I20: 6.35E-04 | J20: Emission (to air)
A21: NMVOC | B21: 2.35E-05 | F21: Lead (Pb) | G21: Mass | H21: kg | I21: 3.76E-06 | J21: Emission (to air)
A22: Dust | B22: 2.07E-03 | F22: Mercury (Hg) | G22: Mass | H22: kg | I22: 8.16E-08 | J22: Emission (to air)
A23: WATER (kg) | B23: 7.47E+02 | F23: Methane (CH4) | G23: Mass | H23: kg | I23: 2.64E+00 | J23: Emission (to air)
F24: NGCC Plant Electricity | G24: Energy | H24: MJ | I24: 3.60E+03 | J24: Product
A25: Emissions Data - NO CCS - AVERAGE Gas | F25: Nitrogen Oxides (NOx) | G25: Mass | H25: kg | I25: 3.70E-01 | J25: Emission (to air)
A26: GHG Emissions - g/MJ Electricity Delivered | F26: NMVOC (non-methane volatile organics) | G26: Mass | H26: kg | I26: 2.01E-02 | J26: Emission (to air)
A27: CO2 | B27: 1.01E+02 | F27: Particulates > 2.5 μm and < 10 μm | G27: Mass | H27: kg | I27: 6.38E-03 | J27: Emission (to air)
A28: N2O | B28: 3.89E-06 | F28: Sulfur dioxide (SO2) | G28: Mass | H28: kg | I28: 1.89E-02 | J28: Emission (to air)
A29: CH4 | B29: 9.50E-05
A30: Pollutants - g/MJ Electricity Delivered
A31: Pb | B31: 7.03E-07
A32: Hg | B32: 6.25E-09 | F32: Mid-Point Characterizations | G32: Amount
A33: NH3 | B33: 4.86E-03 | F33: Mid-Point Inventory | G33: Egalitarian (E) | H33: Heirarchist (H) | I33: Individualist (I) | J33: Units
A34: CO | B34: 8.11E-04 | F34: Agricultural Land Occupation - ALOP | G34: 0.00E+00 | H34: 0.00E+00 | I34: 0.00E+00 | J34: m2
A35: NOx | B35: 7.89E-03 | F35: Climate Change - GWP | G35: 4.08E+02 | H35: 4.54E+02 | I35: 5.78E+02 | J35: kg CO2-Eq
A36: SOx | B36: 3.64E-04 | F36: Fossil Depletion - FDP | G36: 1.70E+02 | H36: 1.70E+02 | I36: 1.70E+02 | J36: kg oil-Eq
A37: NMVOC | B37: 6.53E-06 | F37: Freshwater Ecotoxicity - FETP | G37: 1.57E-06 | H37: 2.87E-07 | I37: 2.87E-07 | J37: kg 1,4-DCB-Eq
A38: Dust | B38: 5.75E-04 | F38: Freshwater Eutrophication - FEP | G38: 0.00E+00 | H38: 0.00E+00 | I38: 0.00E+00 | J38: kg P-Eq
A39: WATER (kg) | B39: 2.08E-01 | F39: Human Toxicity - HTP | G39: 1.87E-01 | H39: 1.02E-01 | I39: 5.86E-02 | J39: kg 1,4-DCB-Eq
F40: Ionising Radiation - IRP_HE | G40: 0.00E+00 | H40: 0.00E+00 | I40: 0.00E+00 | J40: kg U235-Eq
F41: Marine Ecotoxicity - METP | G41: 6.95E-03 | H41: 5.42E-05 | I41: 5.42E-05 | J41: kg 1,4-DCB-Eq
F42: Marine Eutrophication - ME | G42: 1.62E-02 | H42: 1.62E-02 | I42: 1.62E-02 | J42: kg N-Eq
F43: Metal Depletion - MD | G43: 0.00E+00 | H43: 0.00E+00 | I43: 0.00E+00 | J43: kg Fe-Eq
F44: Natural land Transformation - NLTP | G44: 0.00E+00 | H44: 0.00E+00 | I44: 0.00E+00 | J44: m2
F45: Ozone Depletion - ODP | G45: 0.00E+00 | H45: 0.00E+00 | I45: 0.00E+00 | J45: kg CFC-11-Eq
F46: Particulate Matter Formation - PMFP | G46: 9.79E-02 | H46: 9.79E-02 | I46: 9.79E-02 | J46: kg PM10-Eq
F47: Photochemical Oxidant Formation - POFP | G47: 4.23E-01 | H47: 4.23E-01 | I47: 4.23E-01 | J47: kg NMVOC
F48: Terrestrial Acidification - TAP | G48: 3.38E-01 | H48: 2.74E-01 | I48: 2.39E-01 | J48: kg SO2-Eq
F49: Terrestrial Ecotoxicity - TETP | G49: 1.72E-04 | H49: 8.61E-06 | I49: 8.61E-06 | J49: kg 1,4-DCB-Eq
F50: Urban Land Occupation - ULOP | G50: 0.00E+00 | H50: 0.00E+00 | I50: 0.00E+00 | J50: m2
F51: Water Depletion - WDP | G51: 1.10E+02 | H51: 1.10E+02 | I51: 1.10E+02 | J51: m3
F55: End-Point Characterizations | G55: Amount
F56: End-Point Category | G56: Egalitarian (E) | H56: Heirarchist (H) | I56: Individualist (I) | J56: Units
F57: Ecosystem Quality - Agricultural Land Occupation | G57: 0.00E+00 | H57: 0.00E+00 | I57: 0.00E+00 | J57: points
F58: Ecosystem Quality - Climate Change | G58: 1.23E+00 | H58: 1.57E+00 | I58: 2.29E+00 | J58: points
F59: Ecosystem Quality - Freshwater Ecotoxicity | G59: 2.18E-10 | H59: 1.08E-10 | I59: 1.23E-10 | J59: points
F60: Ecosystem Quality - Freshwater Eutrophication | G60: 0.00E+00 | H60: 0.00E+00 | I60: 0.00E+00 | J60: points
F61: Ecosystem Quality - Marine Ecotoxicity | G61: 1.97E-07 | H61: 4.16E-09 | I61: 4.77E-09 | J61: points
F62: Ecosystem Quality - Natural Land Transformation | G62: 0.00E+00 | H62: 0.00E+00 | I62: 0.00E+00 | J62: points
F63: Ecosystem Quality - Terrestrial Acidification | G63: 7.75E-04 | H63: 6.93E-04 | I63: 1.81E-04 | J63: points
F64: Ecosystem Quality - Terrestrial Ecotoxicity | G64: 4.17E-06 | H64: 5.65E-07 | I64: 6.48E-07 | J64: points
F65: Ecosystem Quality - Total | G65: 1.23E+00 | H65: 1.57E+00 | I65: 2.29E+00 | J65: points
F66: Ecosystem Quality - Urban Land Occupation | G66: 0.00E+00 | H66: 0.00E+00 | I66: 0.00E+00 | J66: points
F67: Human Health - Climate Change | G67: 2.40E+01 | H67: 1.88E+01 | I67: 1.84E+01 | J67: points
F68: Human Health - Human Toxicity | G68: 2.19E-03 | H68: 2.11E-03 | I68: 1.09E-03 | J68: points
F69: Human Health - Ionising Radiation | G69: 0.00E+00 | H69: 0.00E+00 | I69: 0.00E+00 | J69: points
F70: Human Health - Ozone Depletion | G70: 0.00E+00 | H70: 0.00E+00 | I70: 0.00E+00 | J70: points
F71: Human Health - Particulate Matter Formation | G71: 4.26E-01 | H71: 7.54E-01 | I71: 6.78E-01 | J71: points
F72: Human Health - Photochemical Oxidant Formation | G72: 2.76E-04 | H72: 4.89E-04 | I72: 4.40E-04 | J72: points
F73: Human Health - Total | G73: 2.44E+01 | H73: 1.96E+01 | I73: 1.90E+01 | J73: points
F74: Resources - Fossil Depletion | G74: 2.30E+01 | H74: 2.30E+01 | I74: 1.79E+01 | J74: points
F75: Resources - Metal Depletion | G75: 0.00E+00 | H75: 0.00E+00 | I75: 0.00E+00 | J75: points
F76: Resources - Total | G76: 2.30E+01 | H76: 2.30E+01 | I76: 1.79E+01 | J76: points
F77: Total | G77: 4.86E+01 | H77: 4.42E+01 | I77: 3.92E+01 | J77: points

Sheet NGCC-2
A1: NGCC - Case 2
A5: Plant efficiency | B5: 46.70%
A6: Carbon Capture? | B6: NO
A7: Transmission Losses? | B7: YES
F8: Flow Inventory
A9: Emissions Data - NO CCS - AVERAGE Gas | F9: Inputs
A10: GHG Emissions - kg/MW-h Electricity Delivered | F10: Flow | G10: Flow property | H10: Unit | I10: Amount | J10: Flow type
A11: CO2 | B11: 3.93E+02 | F11: natural gas (44.1 MJ/kg) | G11: Mass | H11: kg | I11: 2.01E+02 | J11: Resource (in-ground)
A12: N2O | B12: 1.50E-05 | F12: Water (unspecified natural origin) | G12: Volume | H12: m3 | I12: 1.18E+02 | J12: Resource (in-ground)
A13: CH4 | B13: 3.68E-04
A14: Pollutants - kg/MW-h Electricity Delivered
A15: Pb | B15: 2.72E-06 | F15: Outputs
A16: Hg | B16: 2.42E-08 | F16: Flow | G16: Flow property | H16: Unit | I16: Amount | J16: Flow type
A17: NH3 | B17: 1.88E-02 | F17: Ammonia (NH3) | G17: Mass | H17: kg | I17: 2.08E-02 | J17: Emission (to air)
A18: CO | B18: 3.14E-03 | F18: Carbon Dioxide (CO2) | G18: Mass | H18: kg | I18: 4.17E+02 | J18: Emission (to air)
A19: NOx | B19: 3.05E-02 | F19: Carbon Monoxide (CO) | G19: Mass | H19: kg | I19: 9.82E-02 | J19: Emission (to air)
A20: SOx | B20: 1.41E-03 | F20: Dinitrogen Monoxide (N2O) | G20: Mass | H20: kg | I20: 6.83E-04 | J20: Emission (to air)
A21: NMVOC | B21: 2.53E-05 | F21: Lead (Pb) | G21: Mass | H21: kg | I21: 4.04E-06 | J21: Emission (to air)
A22: Dust | B22: 2.22E-03 | F22: Mercury (Hg) | G22: Mass | H22: kg | I22: 8.77E-08 | J22: Emission (to air)
A23: WATER (kg) | B23: 8.03E+02 | F23: Methane (CH4) | G23: Mass | H23: kg | I23: 2.84E+00 | J23: Emission (to air)
F24: NGCC Plant Electricity | G24: Energy | H24: MJ | I24: 3.60E+03 | J24: Product
A25: Emissions Data - NO CCS - AVERAGE Gas | F25: Nitrogen Oxides (NOx) | G25: Mass | H25: kg | I25: 3.98E-01 | J25: Emission (to air)
A26: GHG Emissions - g/MJ Electricity Delivered | F26: NMVOC (non-methane volatile organics) | G26: Mass | H26: kg | I26: 2.16E-02 | J26: Emission (to air)
A27: CO2 | B27: 1.09E+02 | F27: Particulates > 2.5 μm and < 10 μm | G27: Mass | H27: kg | I27: 6.85E-03 | J27: Emission (to air)
A28: N2O | B28: 4.17E-06 | F28: Sulfur dioxide (SO2) | G28: Mass | H28: kg | I28: 2.04E-02 | J28: Emission (to air)
A29: CH4 | B29: 1.02E-04
A30: Pollutants - g/MJ Electricity Delivered
A31: Pb | B31: 7.56E-07
A32: Hg | B32: 6.72E-09 | F32: Mid-Point Characterizations | G32: Amount
A33: NH3 | B33: 5.22E-03 | F33: Mid-Point Inventory | G33: Egalitarian (E) | H33: Heirarchist (H) | I33: Individualist (I) | J33: Units
A34: CO | B34: 8.72E-04 | F34: Agricultural Land Occupation - ALOP | G34: 0.00E+00 | H34: 0.00E+00 | I34: 0.00E+00 | J34: m2
A35: NOx | B35: 8.47E-03 | F35: Climate Change - GWP | G35: 4.39E+02 | H35: 4.89E+02 | I35: 6.22E+02 | J35: kg CO2-Eq
A36: SOx | B36: 3.92E-04 | F36: Fossil Depletion - FDP | G36: 1.83E+02 | H36: 1.83E+02 | I36: 1.83E+02 | J36: kg oil-Eq
A37: NMVOC | B37: 7.03E-06 | F37: Freshwater Ecotoxicity - FETP | G37: 1.69E-06 | H37: 3.08E-07 | I37: 3.08E-07 | J37: kg 1,4-DCB-Eq
A38: Dust | B38: 6.17E-04 | F38: Freshwater Eutrophication - FEP | G38: 0.00E+00 | H38: 0.00E+00 | I38: 0.00E+00 | J38: kg P-Eq
A39: WATER (kg) | B39: 2.23E-01 | F39: Human Toxicity - HTP | G39: 2.01E-01 | H39: 1.09E-01 | I39: 6.30E-02 | J39: kg 1,4-DCB-Eq
F40: Ionising Radiation - IRP_HE | G40: 0.00E+00 | H40: 0.00E+00 | I40: 0.00E+00 | J40: kg U235-Eq
F41: Marine Ecotoxicity - METP | G41: 7.48E-03 | H41: 5.83E-05 | I41: 5.83E-05 | J41: kg 1,4-DCB-Eq
F42: Marine Eutrophication - MEP | G42: 1.74E-02 | H42: 1.74E-02 | I42: 1.74E-02 | J42: kg N-Eq
F43: Metal Depletion - MDP | G43: 0.00E+00 | H43: 0.00E+00 | I43: 0.00E+00 | J43: kg Fe-Eq
F44: Natural land Transformation - NLTP | G44: 0.00E+00 | H44: 0.00E+00 | I44: 0.00E+00 | J44: m2
F45: Ozone Depletion - ODP | G45: 0.00E+00 | H45: 0.00E+00 | I45: 0.00E+00 | J45: kg CFC-11-Eq
F46: Particulate Matter Formation - PMFP | G46: 1.05E-01 | H46: 1.05E-01 | I46: 1.05E-01 | J46: kg PM10-Eq
F47: Photochemical Oxidant Formation - POFP | G47: 4.55E-01 | H47: 4.55E-01 | I47: 4.55E-01 | J47: kg NMVOC
F48: Terrestrial Acidification - TAP | G48: 3.63E-01 | H48: 2.94E-01 | I48: 2.57E-01 | J48: kg SO2-Eq
F49: Terrestrial Ecotoxicity - TETP | G49: 1.84E-04 | H49: 9.26E-06 | I49: 9.26E-06 | J49: kg 1,4-DCB-Eq
F50: Urban Land Occupation - ULOP | G50: 0.00E+00 | H50: 0.00E+00 | I50: 0.00E+00 | J50: m2
F51: Water Depletion - WDP | G51: 1.18E+02 | H51: 1.18E+02 | I51: 1.18E+02 | J51: m3
F55: End-Point Characterizations | G55: Amount
F56: End-Point Category | G56: Egalitarian (E) | H56: Heirarchist (H) | I56: Individualist (I) | J56: Units
F57: Ecosystem Quality - Agricultural Land Occupation | G57: 0.00E+00 | H57: 0.00E+00 | I57: 0.00E+00 | J57: points
F58: Ecosystem Quality - Climate Change | G58: 1.33E+00 | H58: 1.69E+00 | I58: 2.47E+00 | J58: points
F59: Ecosystem Quality - Freshwater Ecotoxicity | G59: 2.35E-10 | H59: 1.16E-10 | I59: 1.33E-10 | J59: points
F60: Ecosystem Quality - Freshwater Eutrophication | G60: 0.00E+00 | H60: 0.00E+00 | I60: 0.00E+00 | J60: points
F61: Ecosystem Quality - Marine Ecotoxicity | G61: 2.12E-07 | H61: 4.48E-09 | I61: 5.13E-09 | J61: points
F62: Ecosystem Quality - Natural Land Transformation | G62: 0.00E+00 | H62: 0.00E+00 | I62: 0.00E+00 | J62: points
F63: Ecosystem Quality - Terrestrial Acidification | G63: 8.33E-04 | H63: 7.45E-04 | I63: 1.95E-04 | J63: points
F64: Ecosystem Quality - Terrestrial Ecotoxicity | G64: 4.48E-06 | H64: 6.08E-07 | I64: 6.97E-07 | J64: points
F65: Ecosystem Quality - Total | G65: 1.33E+00 | H65: 1.69E+00 | I65: 2.47E+00 | J65: points
F66: Ecosystem Quality - Urban Land Occupation | G66: 0.00E+00 | H66: 0.00E+00 | I66: 0.00E+00 | J66: points
F67: Human Health - Climate Change | G67: 2.58E+01 | H67: 2.03E+01 | I67: 1.97E+01 | J67: points
F68: Human Health - Human Toxicity | G68: 2.35E-03 | H68: 2.27E-03 | I68: 1.18E-03 | J68: points
F69: Human Health - Ionising Radiation | G69: 0.00E+00 | H69: 0.00E+00 | I69: 0.00E+00 | J69: points
F70: Human Health - Ozone Depletion | G70: 0.00E+00 | H70: 0.00E+00 | I70: 0.00E+00 | J70: points
F71: Human Health - Particulate Matter Formation | G71: 4.58E-01 | H71: 8.10E-01 | I71: 7.29E-01 | J71: points
F72: Human Health - Photochemical Oxidant Formation | G72: 2.97E-04 | H72: 5.26E-04 | I72: 4.73E-04 | J72: points
F73: Human Health - Total | G73: 2.63E+01 | H73: 2.11E+01 | I73: 2.05E+01 | J73: points
F74: Resources - Fossil Depletion | G74: 2.48E+01 | H74: 2.48E+01 | I74: 1.92E+01 | J74: points
F75: Resources - Metal Depletion | G75: 0.00E+00 | H75: 0.00E+00 | I75: 0.00E+00 | J75: points
F76: Resources - Total | G76: 2.48E+01 | H76: 2.48E+01 | I76: 1.92E+01 | J76: points
F77: Total | G77: 5.23E+01 | H77: 4.75E+01 | I77: 4.22E+01 | J77: points

Sheet NGCC-3
A1: NGCC - Case 3
A5: Plant efficiency | B5: 42.30%
A6: Carbon Capture? | B6: YES
A7: Transmission Losses? | B7: NO
F8: Flow Inventory
A9: Total Emissions Data - CCS - AVERAGE Gas | F9: Inputs
A10: GHG Emissions - kg/MW-h Electricity Delivered | F10: Flow | G10: Flow property | H10: Unit | I10: Amount | J10: Flow type
A11: CO2 | B11: 4.71E+01 | F11: natural gas (44.1 MJ/kg) | G11: Mass | H11: kg | I11: 2.19E+02 | J11: Resource (in-ground)
A12: N2O | B12: 2.18E-05 | F12: Water (unspecified natural origin) | G12: Volume | H12: m3 | I12: 1.30E+02 | J12: Resource (in-ground)
A13: CH4 | B13: 5.18E-04
A14: Pollutants - kg/MW-h Electricity Delivered
A15: Pb | B15: 2.88E-06 | F15: Outputs
A16: Hg | B16: 3.23E-08 | F16: Flow | G16: Flow property | H16: Unit | I16: Amount | J16: Flow type
A17: NH3 | B17: 1.89E-02 | F17: Ammonia (NH3) | G17: Mass | H17: kg | I17: 2.16E-03 | J17: Emission (to air)
A18: CO | B18: 4.21E-03 | F18: Carbon Dioxide (CO2) | G18: Mass | H18: kg | I18: 7.44E+01 | J18: Emission (to air)
A19: NOx | B19: 3.18E-02 | F19: Carbon Monoxide (CO) | G19: Mass | H19: kg | I19: 1.08E-01 | J19: Emission (to air)
A20: SOx | B20: 1.78E-03 | F20: Dinitrogen Monoxide (N2O) | G20: Mass | H20: kg | I20: 7.50E-04 | J20: Emission (to air)
A21: NMVOC | B21: 3.83E-05 | F21: Lead (Pb) | G21: Mass | H21: kg | I21: 4.32E-06 | J21: Emission (to air)
A22: Dust | B22: 2.43E-03 | F22: Mercury (Hg) | G22: Mass | H22: kg | I22: 1.02E-07 | J22: Emission (to air)
A23: WATER (kg) | B23: 1.43E+03 | F23: Methane (CH4) | G23: Mass | H23: kg | I23: 3.10E+00 | J23: Emission (to air)
F24: NGCC Plant Electricity | G24: Energy | H24: MJ | I24: 3.60E+03 | J24: Product
A25: Total Emissions Data - CCS - AVERAGE Gas | F25: Nitrogen Oxides (NOx) | G25: Mass | H25: kg | I25: 4.33E-01 | J25: Emission (to air)
A26: GHG Emissions - g/MJ Electricity Delivered | F26: NMVOC (non-methane volatile organics) | G26: Mass | H26: kg | I26: 2.36E-02 | J26: Emission (to air)
A27: CO2 | B27: 1.33E+01 | F27: Particulates > 2.5 μm and < 10 μm | G27: Mass | H27: kg | I27: 7.48E-03 | J27: Emission (to air)
A28: N2O | B28: 6.06E-06 | F28: Sulfur dioxide (SO2) | G28: Mass | H28: kg | I28: 2.24E-02 | J28: Emission (to air)
A29: CH4 | B29: 1.44E-04
A30: Pollutants - g/MJ Electricity Delivered
A31: Pb | B31: 8.00E-07
A32: Hg | B32: 8.97E-09 | F32: Mid-Point Characterizations | G32: Amount
A33: NH3 | B33: 5.25E-03 | F33: Mid-Point Inventory | G33: Egalitarian (E) | H33: Heirarchist (H) | I33: Individualist (I) | J33: Units
A34: CO | B34: 1.17E-03 | F34: Agricultural Land Occupation - ALOP | G34: 0.00E+00 | H34: 0.00E+00 | I34: 0.00E+00 | J34: m2
A35: NOx | B35: 8.83E-03 | F35: Climate Change - GWP | G35: 9.81E+01 | H35: 1.52E+02 | I35: 2.98E+02 | J35: kg CO2-Eq
A36: SOx | B36: 4.94E-04 | F36: Fossil Depletion - FDP | G36: 2.00E+02 | H36: 2.00E+02 | I36: 2.00E+02 | J36: kg oil-Eq
A37: NMVOC | B37: 1.06E-05 | F37: Freshwater Ecotoxicity - FETP | G37: 1.90E-06 | H37: 3.55E-07 | I37: 3.55E-07 | J37: kg 1,4-DCB-Eq
A38: Dust | B38: 6.75E-04 | F38: Freshwater Eutrophication - FEP | G38: 0.00E+00 | H38: 0.00E+00 | I38: 0.00E+00 | J38: kg P-Eq
A39: WATER (kg) | B39: 3.98E-01 | F39: Human Toxicity - HTP | G39: 2.24E-01 | H39: 1.21E-01 | I39: 7.13E-02 | J39: kg 1,4-DCB-Eq
F40: Ionising Radiation - IRP_HE | G40: 0.00E+00 | H40: 0.00E+00 | I40: 0.00E+00 | J40: kg U235-Eq
A41: CO2 Sequestration Data (units in kg/MW-h) | F41: Marine Ecotoxicity - METP | G41: 8.55E-03 | H41: 6.69E-05 | I41: 6.69E-05 | J41: kg 1,4-DCB-Eq
A42: Total CO2 potentially emitted | B42: 4.28E+02 | F42: Marine Eutrophication - MEP | G42: 1.70E-02 | H42: 1.70E-02 | I42: 1.70E-02 | J42: kg N-Eq
A43: CO2 captured | B43: 3.81E+02 | F43: Metal Depletion - MDP | G43: 0.00E+00 | H43: 0.00E+00 | I43: 0.00E+00 | J43: kg Fe-Eq
A44: CO2 fugitive | B44: 4.28E+00 | F44: Natural land Transformation - NLTP | G44: 0.00E+00 | H44: 0.00E+00 | I44: 0.00E+00 | J44: m2
A45: CO2 uncaptured | B45: 4.28E+01 | F45: Ozone Depletion - ODP | G45: 0.00E+00 | H45: 0.00E+00 | I45: 0.00E+00 | J45: kg CFC-11-Eq
A46: Total CO2 emitted | B46: 4.71E+01 | F46: Particulate Matter Formation - PMFP | G46: 1.08E-01 | H46: 1.08E-01 | I46: 1.08E-01 | J46: kg PM10-Eq
F47: Photochemical Oxidant Formation - POFP | G47: 4.95E-01 | H47: 4.95E-01 | I47: 4.95E-01 | J47: kg NMVOC
A48: Pipeline Emissions Data - CCS - AVERAGE Gas | F48: Terrestrial Acidification - TAP | G48: 3.36E-01 | H48: 2.70E-01 | I48: 2.39E-01 | J48: kg SO2-Eq
A49: GHG Emissions -kg/kg CO2 Sequestered | F49: Terrestrial Ecotoxicity - TETP | G49: 2.10E-04 | H49: 1.07E-05 | I49: 1.07E-05 | J49: kg 1,4-DCB-Eq
A50: CO2 | B50: 9.50E-05 | F50: Urban Land Occupation - ULOP | G50: 0.00E+00 | H50: 0.00E+00 | I50: 0.00E+00 | J50: m2
A51: N2O | B51: 1.92E-09 | F51: Water Depletion - WDP | G51: 1.30E+02 | H51: 1.30E+02 | I51: 1.30E+02 | J51: m3
A52: CH4 | B52: 8.16E-08
A53: Pollutants - kg/kg CO2 Sequestered
A54: Pb | B54: 3.81E-13
A55: Hg | B55: 2.70E-14 | F55: End-Point Characterizations | G55: Amount
A56: NH3 | B56: 1.98E-09 | F56: End-Point Category | G56: Egalitarian (E) | H56: Heirarchist (H) | I56: Individualist (I) | J56: Units
A57: CO | B57: 3.18E-07 | F57: Ecosystem Quality - Agricultural Land Occupation | G57: 0.00E+00 | H57: 0.00E+00 | I57: 0.00E+00 | J57: points
A58: NOx | B58: 7.72E-07 | F58: Ecosystem Quality - Climate Change | G58: 2.96E-01 | H58: 5.26E-01 | I58: 1.18E+00 | J58: points
A59: SOx | B59: 5.43E-08 | F59: Ecosystem Quality - Freshwater Ecotoxicity | G59: 2.64E-10 | H59: 1.33E-10 | I59: 1.53E-10 | J59: points
A60: NMVOC | B60: 2.97E-08 | F60: Ecosystem Quality - Freshwater Eutrophication | G60: 0.00E+00 | H60: 0.00E+00 | I60: 0.00E+00 | J60: points
A61: Dust | B61: 1.75E-07 | F61: Ecosystem Quality - Marine Ecotoxicity | G61: 2.43E-07 | H61: 5.14E-09 | I61: 5.89E-09 | J61: points
A62: WATER (kg) | B62: 4.12E-05 | F62: Ecosystem Quality - Natural Land Transformation | G62: 0.00E+00 | H62: 0.00E+00 | I62: 0.00E+00 | J62: points
F63: Ecosystem Quality - Terrestrial Acidification | G63: 7.71E-04 | H63: 6.84E-04 | I63: 1.81E-04 | J63: points
A64: Pipeline Emissions Data - CCS - AVERAGE Gas | F64: Ecosystem Quality - Terrestrial Ecotoxicity | G64: 5.11E-06 | H64: 7.03E-07 | I64: 8.05E-07 | J64: points
A65: GHG Emissions -kg/MW-h Electricity Delivered | F65: Ecosystem Quality - Total | G65: 2.97E-01 | H65: 5.27E-01 | I65: 1.18E+00 | J65: points
A66: CO2 | B66: 3.62E-02 | F66: Ecosystem Quality - Urban Land Occupation | G66: 0.00E+00 | H66: 0.00E+00 | I66: 0.00E+00 | J66: points
A67: N2O | B67: 7.30E-07 | F67: Human Health - Climate Change | G67: 5.76E+00 | H67: 6.31E+00 | I67: 9.45E+00 | J67: points
A68: CH4 | B68: 3.11E-05 | F68: Human Health - Human Toxicity | G68: 2.63E-03 | H68: 2.51E-03 | I68: 1.33E-03 | J68: points
A69: Pollutants - kg/MW-h Electricity Delivered | F69: Human Health - Ionising Radiation | G69: 0.00E+00 | H69: 0.00E+00 | I69: 0.00E+00 | J69: points
A70: Pb | B70: 1.45E-10 | F70: Human Health - Ozone Depletion | G70: 0.00E+00 | H70: 0.00E+00 | I70: 0.00E+00 | J70: points
A71: Hg | B71: 1.03E-11 | F71: Human Health - Particulate Matter Formation | G71: 4.70E-01 | H71: 8.31E-01 | I71: 7.48E-01 | J71: points
A72: NH3 | B72: 7.56E-07 | F72: Human Health - Photochemical Oxidant Formation | G72: 3.23E-04 | H72: 5.72E-04 | I72: 5.15E-04 | J72: points
A73: CO | B73: 1.21E-04 | F73: Human Health - Total | G73: 6.23E+00 | H73: 7.14E+00 | I73: 1.02E+01 | J73: points
A74: NOx | B74: 2.94E-04 | F74: Resources - Fossil Depletion | G74: 2.70E+01 | H74: 2.70E+01 | I74: 2.10E+01 | J74: points
A75: SOx | B75: 2.07E-05 | F75: Resources - Metal Depletion | G75: 0.00E+00 | H75: 0.00E+00 | I75: 0.00E+00 | J75: points
A76: NMVOC | B76: 1.13E-05 | F76: Resources - Total | G76: 2.70E+01 | H76: 2.70E+01 | I76: 2.10E+01 | J76: points
A77: Dust | B77: 6.67E-05 | F77: Total | G77: 3.35E+01 | H77: 3.47E+01 | I77: 3.24E+01 | J77: points
A78: WATER (kg) | B78: 1.57E-02

Sheet NGCC-4
A1: NGCC - Case 4
A5: Plant efficiency | B5: 39.80%
A6: Carbon Capture? | B6: YES
A7: Transmission Losses? | B7: YES
F8: Flow Inventory
A9: Total Emissions Data - CCS - AVERAGE Gas | F9: Inputs
A10: GHG Emissions - kg/MW-h Electricity Delivered | F10: Flow | G10: Flow property | H10: Unit | I10: Amount | J10: Flow type
A11: CO2 | B11: 5.13E+01 | F11: natural gas (44.1 MJ/kg) | G11: Mass | H11: kg | I11: 2.36E+02 | J11: Resource (in-ground)
A12: N2O | B12: 2.34E-05 | F12: Water (unspecified natural origin) | G12: Volume | H12: m3 | I12: 1.39E+02 | J12: Resource (in-ground)
A13: CH4 | B13: 5.57E-04
A14: Pollutants - kg/MW-h Electricity Delivered
A15: Pb | B15: 3.09E-06 | F15: Outputs
A16: Hg | B16: 3.47E-08 | F16: Flow | G16: Flow property | H16: Unit | I16: Amount | J16: Flow type
A17: NH3 | B17: 2.03E-02 | F17: Ammonia (NH3) | G17: Mass | H17: kg | I17: 2.26E-02 | J17: Emission (to air)
A18: CO | B18: 4.53E-03 | F18: Carbon Dioxide (CO2) | G18: Mass | H18: kg | I18: 8.00E+01 | J18: Emission (to air)
A19: NOx | B19: 3.42E-02 | F19: Carbon Monoxide (CO) | G19: Mass | H19: kg | I19: 1.16E-01 | J19: Emission (to air)
A20: SOx | B20: 1.92E-03 | F20: Dinitrogen Monoxide (N2O) | G20: Mass | H20: kg | I20: 8.06E-04 | J20: Emission (to air)
A21: NMVOC | B21: 4.12E-05 | F21: Lead (Pb) | G21: Mass | H21: kg | I21: 4.64E-06 | J21: Emission (to air)
A22: Dust | B22: 2.61E-03 | F22: Mercury (Hg) | G22: Mass | H22: kg | I22: 1.09E-07 | J22: Emission (to air)
A23: WATER (kg) | B23: 1.54E+03 | F23: Methane (CH4) | G23: Mass | H23: kg | I23: 3.33E+00 | J23: Emission (to air)
F24: NGCC Plant Electricity | G24: Energy | H24: MJ | I24: 3.60E+03 | J24: Product
A25: Total Emissions Data - CCS - AVERAGE Gas | F25: Nitrogen Oxides (NOx) | G25: Mass | H25: kg | I25: 4.66E-01 | J25: Emission (to air)
A26: GHG Emissions - g/MJ Electricity Delivered | F26: NMVOC (non-methane volatile organics) | G26: Mass | H26: kg | I26: 2.54E-02 | J26: Emission (to air)
A27: CO2 | B27: 1.43E+01 | F27: Particulates > 2.5 μm and < 10 μm | G27: Mass | H27: kg | I27: 8.04E-03 | J27: Emission (to air)
A28: N2O | B28: 6.50E-06 | F28: Sulfur dioxide (SO2) | G28: Mass | H28: kg | I28: 2.41E-02 | J28: Emission (to air)
A29: CH4 | B29: 1.55E-04
A30: Pollutants - g/MJ Electricity Delivered
A31: Pb | B31: 8.58E-07
A32: Hg | B32: 9.64E-09 | F32: Mid-Point Characterizations | G32: Amount
A33: NH3 | B33: 5.64E-03 | F33: Mid-Point Inventory | G33: Egalitarian (E) | H33: Heirarchist (H) | I33: Individualist (I) | J33: Units
A34: CO | B34: 1.26E-03 | F34: Agricultural Land Occupation - ALOP | G34: 0.00E+00 | H34: 0.00E+00 | I34: 0.00E+00 | J34: m2
A35: NOx | B35: 9.50E-03 | F35: Climate Change - GWP | G35: 1.05E+02 | H35: 1.64E+02 | I35: 3.20E+02 | J35: kg CO2-Eq
A36: SOx | B36: 5.33E-04 | F36: Fossil Depletion - FDP | G36: 2.15E+02 | H36: 2.15E+02 | I36: 2.15E+02 | J36: kg oil-Eq
A37: NMVOC | B37: 1.14E-05 | F37: Freshwater Ecotoxicity - FETP | G37: 2.04E-06 | H37: 3.82E-07 | I37: 3.82E-07 | J37: kg 1,4-DCB-Eq
A38: Dust | B38: 7.25E-04 | F38: Freshwater Eutrophication - FEP | G38: 0.00E+00 | H38: 0.00E+00 | I38: 0.00E+00 | J38: kg P-Eq
A39: WATER (kg) | B39: 4.28E-01 | F39: Human Toxicity - HTP | G39: 2.41E-01 | H39: 1.30E-01 | I39: 7.66E-02 | J39: kg 1,4-DCB-Eq
F40: Ionising Radiation - IRP_HE | G40: 0.00E+00 | H40: 0.00E+00 | I40: 0.00E+00 | J40: kg U235-Eq
A41: CO2 Sequestration Data (units in kg/MW-h) | F41: Marine Ecotoxicity - METP | G41: 9.19E-03 | H41: 7.19E-05 | I41: 7.19E-05 | J41: kg 1,4-DCB-Eq
A42: Total CO2 potentially emitted | B42: 4.61E+02 | F42: Marine Eutrophication - MEP | G42: 2.02E-02 | H42: 2.02E-02 | I42: 2.02E-02 | J42: kg N-Eq
A43: CO2 captured | B43: 4.10E+02 | F43: Metal Depletion - MDP | G43: 0.00E+00 | H43: 0.00E+00 | I43: 0.00E+00 | J43: kg Fe-Eq
A44: CO2 fugitive | B44: 4.61E+00 | F44: Natural land Transformation - NLTP | G44: 0.00E+00 | H44: 0.00E+00 | I44: 0.00E+00 | J44: m2
A45: CO2 uncaptured | B45: 4.61E+01 | F45: Ozone Depletion - ODP | G45: 0.00E+00 | H45: 0.00E+00 | I45: 0.00E+00 | J45: kg CFC-11-Eq
A46: Total CO2 emitted | B46: 5.07E+01 | F46: Particulate Matter Formation - PMFP | G46: 1.23E-01 | H46: 1.23E-01 | I46: 1.23E-01 | J46: kg PM10-Eq
F47: Photochemical Oxidant Formation - POFP | G47: 5.32E-01 | H47: 5.32E-01 | I47: 5.32E-01 | J47: kg NMVOC
A48: Pipeline Emissions Data - CCS - AVERAGE Gas | F48: Terrestrial Acidification - TAP | G48: 4.20E-01 | H48: 3.40E-01 | I48: 2.97E-01 | J48: kg SO2-Eq
A49: GHG Emissions -kg/kg CO2 Sequestered | F49: Terrestrial Ecotoxicity - TETP | G49: 2.26E-04 | H49: 1.15E-05 | I49: 1.15E-05 | J49: kg 1,4-DCB-Eq
A50: CO2 | B50: 9.44E-05 | F50: Urban Land Occupation - ULOP | G50: 0.00E+00 | H50: 0.00E+00 | I50: 0.00E+00 | J50: m2
A51: N2O | B51: 1.90E-09 | F51: Water Depletion - WDP | G51: 1.39E+02 | H51: 1.39E+02 | I51: 1.39E+02 | J51: m3
A52: CH4 | B52: 8.11E-08
A53: Pollutants - kg/kg CO2 Sequestered
A54: Pb | B54: 3.78e-13
A55: Hg | B55: 2.69E-14 | F55: End-Point Characterizations | G55: Amount
A56: NH3 | B56: 1.97E-09 | F56: End-Point Category | G56: Egalitarian (E) | H56: Heirarchist (H) | I56: Individualist (I) | J56: Units
A57: CO | B57: 3.16E-07 | F57: Ecosystem Quality - Agricultural Land Occupation | G57: 0.00E+00 | H57: 0.00E+00 | I57: 0.00E+00 | J57: points
A58: NOx | B58: 7.67E-07 | F58: Ecosystem Quality - Climate Change | G58: 3.18E-01 | H58: 5.66E-01 | I58: 1.27E+00 | J58: points
A59: SOx | B59: 5.40E-08 | F59: Ecosystem Quality - Freshwater Ecotoxicity | G59: 2.83E-10 | H59: 1.43E-10 | I59: 1.64E-10 | J59: points
A60: NMVOC | B60: 2.95E-08 | F60: Ecosystem Quality - Freshwater Eutrophication | G60: 0.00E+00 | H60: 0.00E+00 | I60: 0.00E+00 | J60: points
A61: Dust | B61: 1.74E-07 | F61: Ecosystem Quality - Marine Ecotoxicity | G61: 2.61E-07 | H61: 5.52E-09 | I61: 6.33E-09 | J61: points
A62: WATER (kg) | B62: 4.09E-05 | F62: Ecosystem Quality - Natural Land Transformation | G62: 0.00E+00 | H62: 0.00E+00 | I62: 0.00E+00 | J62: points
F63: Ecosystem Quality - Terrestrial Acidification | G63: 9.63E-04 | H63: 8.61E-04 | I63: 2.26E-04 | J63: points
A64: Pipeline Emissions Data - CCS - AVERAGE Gas | F64: Ecosystem Quality - Terrestrial Ecotoxicity | G64: 5.49E-06 | H64: 7.55E-07 | I64: 8.66E-07 | J64: points
A65: GHG Emissions -kg/MW-h Electricity Delivered | F65: Ecosystem Quality - Total | G65: 3.19E-01 | H65: 5.67E-01 | I65: 1.27E+00 | J65: points
A66: CO2 | B66: 3.87E-02 | F66: Ecosystem Quality - Urban Land Occupation | G66: 0.00E+00 | H66: 0.00E+00 | I66: 0.00E+00 | J66: points
A67: N2O | B67: 7.81E-07 | F67: Human Health - Climate Change | G67: 6.19E+00 | H67: 6.79E+00 | I67: 1.02E+01 | J67: points
A68: CH4 | B68: 3.33E-05 | F68: Human Health - Human Toxicity | G68: 2.82E-03 | H68: 2.69E-03 | I68: 1.43E-03 | J68: points
A69: Pollutants - kg/MW-h Electricity Delivered | F69: Human Health - Ionising Radiation | G69: 0.00E+00 | H69: 0.00E+00 | I69: 0.00E+00 | J69: points
A70: Pb | B70: 1.55E-10 | F70: Human Health - Ozone Depletion | G70: 0.00E+00 | H70: 0.00E+00 | I70: 0.00E+00 | J70: points
A71: Hg | B71: 1.10E-11 | F71: Human Health - Particulate Matter Formation | G71: 5.33E-01 | H71: 9.44E-01 | I71: 8.50E-01 | J71: points
A72: NH3 | B72: 8.09E-07 | F72: Human Health - Photochemical Oxidant Formation | G72: 3.47E-04 | H72: 6.15E-04 | I72: 5.53E-04 | J72: points
A73: CO | B73: 1.29E-04 | F73: Human Health - Total | G73: 6.73E+00 | H73: 7.73E+00 | I73: 1.10E+01 | J73: points
A74: NOx | B74: 3.15E-04 | F74: Resources - Fossil Depletion | G74: 2.90E+01 | H74: 2.90E+01 | I74: 2.26E+01 | J74: points
A75: SOx | B75: 2.21E-05 | F75: Resources - Metal Depletion | G75: 0.00E+00 | H75: 0.00E+00 | I75: 0.00E+00 | J75: points
A76: NMVOC | B76: 1.21E-05 | F76: Resources - Total | G76: 2.90E+01 | H76: 2.90E+01 | I76: 2.26E+01 | J76: points
A77: Dust | B77: 7.14E-05 | F77: Total | G77: 3.61E+01 | H77: 3.73E+01 | I77: 3.49E+01 | J77: points
A78: WATER (kg) | B78: 1.68E-02

Sheet SOFC-1
A1: SOFC - Case 1
A5: Plant efficiency | B5: 65.60%
A6: Carbon Capture? | B6: NO
A7: Transmission Losses? | B7: NO
F8: Flow Inventory
A9: Emissions Data - NO CCS - AVERAGE Gas | F9: Inputs
A10: GHG Emissions - kg/MW-h Electricity Delivered | F10: Flow | G10: Flow property | H10: Unit | I10: Operation | J10: Stack Construction | K10: Total | L10: Flow type
A11: CO2 | B11: 2.78E+02 | F11: Chromium: 25.5% (chromite); 11.6% (crude ore) | G11: Mass | H11: kg | I11: 0.00E+00 | J11: 3.06E-01 | K11: =J11+I11 -> 3.06E-01 | L11: Resource (in-ground)
A12: N2O | B12: N/A | F12: Coal (hard) | G12: Mass | H12: kg | I12: 0.00E+00 | J12: 3.23E+00 | K12: =J12+I12 -> 3.23E+00 | L12: Resource (in-ground)
A13: CH4 | B13: 9.32E-03 | F13: Iron: 46% (ore); 25% (crude ore) | G13: Mass | H13: kg | I13: 0.00E+00 | J13: 7.46E-01 | K13: 7.46E-01 | L13: Resource (in-ground)
A14: Pollutants - kg/MW-h Electricity Delivered | F14: Natural Gas (44.1 MJ/kg) | G14: Mass | H14: kg | I14: 1.43E+02 | J14: 7.41E-01 | K14: 1.44E+02 | L14: Resource (in-ground)
A15: Pb | B15: N/A | F15: Nickel: 1.13% (sulfide); Ni 0.76% and Cu 0.76% (crude ore) | G15: Mass | H15: kg | I15: 0.00E+00 | J15: 9.99E-02 | K15: 9.99E-02 | L15: Resource (in-ground)
A16: Hg | B16: N/A | F16: Oil (crude) | G16: Mass | H16: kg | I16: 0.00E+00 | J16: 4.91E-02 | K16: 4.91E-02 | L16: Resource (in-ground)
A17: NH3 | B17: N/A | F17: Uranium (mined) | G17: Mass | H17: kg | I17: 0.00E+00 | J17: 1.24E-05 | K17: 1.24E-05 | L17: Resource (in-ground)
A18: CO | B18: 6.34E-03 | F18: Water (unspecified natural origin) | G18: Volume | H18: m3 | I18: 8.36E+01 | J18: 0.00E+00 | K18: 8.36E+01 | L18: Resource (in-ground)
A19: NOx | B19: N/A
A20: SOx | B20: N/A
A21: NMVOC | B21: 1.84E-03 | F21: Outputs
A22: Dust | B22: N/A | F22: Flow | G22: Flow property | H22: Unit | I22: Operation | J22: Stack Construction | K22: Total | L22: Flow type
A23: H2 | B23: 2.95E-02 | F23: Ammonia (NH3) | G23: Mass | H23: kg | I23: 1.41E-03 | J23: 0.00E+00 | K23: =SUM(I23:J23) -> 1.41E-03 | L23: Emission (to air)
A24: WATER (kg) | B24: -2.22E+02 | F24: Carbon Dioxide (CO2) | G24: Mass | H24: kg | I24: 2.96E+02 | J24: 1.08E+01 | K24: =SUM(I24:J24) -> 3.07E+02 | L24: Emission (to air)
F25: Carbon Monoxide (CO) | G25: Mass | H25: kg | I25: 7.40E-02 | J25: 3.28E-03 | K25: 7.73E-02 | L25: Emission (to air)
F26: Dinitrogen Monoxide (N2O) | G26: Mass | H26: kg | I26: 4.75E-04 | J26: 1.60E-04 | K26: 6.35E-04 | L26: Emission (to air)
A27: Emissions Data - NO CCS - AVERAGE Gas | F27: Hydrogen (H2) | G27: Mass | H27: kg | I27: 2.95E-02 | J27: 0.00E+00 | K27: 2.95E-02 | L27: Emission (to air)
A28: GHG Emissions - g/MJ Electricity Delivered | F28: Lead (Pb) | G28: Mass | H28: kg | I28: 9.41E-07 | J28: 0.00E+00 | K28: 9.41E-07 | L28: Emission (to air)
A29: CO2 | B29: 7.73E+01 | F29: Mercury (Hg) | G29: Mass | H29: kg | I29: 4.52E-08 | J29: 0.00E+00 | K29: 4.52E-08 | L29: Emission (to air)
A30: N2O | B30: N/A | F30: Methane (CH4) | G30: Mass | H30: kg | I30: 2.03E+00 | J30: 2.13E-04 | K30: 2.03E+00 | L30: Emission (to air)
A31: CH4 | B31: 2.59E-03 | F31: Nitrogen Oxides (NOx) | G31: Mass | H31: kg | I31: 2.62E-01 | J31: 9.94E-03 | K31: 2.72E-01 | L31: Emission (to air)
A32: Pollutants - g/MJ Electricity Delivered | F32: NMVOC (non-methane volatile organics) | G32: Mass | H32: kg | I32: 1.72E-02 | J32: 0.00E+00 | K32: 1.72E-02 | L32: Emission (to air)
A33: Pb | B33: N/A | F33: Particulates > 2.5 μm and < 10 μm | G33: Mass | H33: kg | I33: 3.30E-03 | J33: 2.11E-02 | K33: 2.44E-02 | L33: Emission (to air)
A34: Hg | B34: N/A | F34: SOFC Plant Electricity | G34: Energy | H34: MJ | I34: 3.60E+03 | J34: 0.00E+00 | K34: 3.60E+03 | L34: Product
A35: NH3 | B35: N/A | F35: Sulfur dioxide (SO2) | G35: Mass | H35: kg | I35: 1.35E-02 | J35: 2.73E-02 | K35: 4.08E-02 | L35: Emission (to air)
A36: CO | B36: 1.76E-03
A37: NOx | B37: N/A
A38: SOx | B38: N/A | F38: Mid-Point Characterizations | G38: Egalitarian (E) | J38: Heirarchist (H) | M38: Individualist (I)
A39: NMVOC | B39: 5.11E-04 | F39: Mid-Point Inventory | G39: Operation | H39: Stack Construction | I39: Total | J39: Operation | K39: Stack Construction | L39: Total | M39: Operation | N39: Stack Construction | O39: Total | P39: Units
A40: Dust | B40: N/A | F40: Agricultural Land Occupation - ALOP | G40: 0.00E+00 | H40: 0.00E+00 | I40: =SUM(G40:H40) -> 0.00E+00 | J40: 0.00E+00 | K40: 0.00E+00 | L40: =SUM(J40:K40) -> 0.00E+00 | M40: 0.00E+00 | N40: 0.00E+00 | O40: =SUM(M40:N40) -> 0.00E+00 | P40: m2
A41: H2 | B41: 8.19E-03 | F41: Climate Change - GWP | G41: 3.11E+02 | H41: 9.16E+00 | I41: 3.20E+02 | J41: 3.47E+02 | K41: 9.18E+00 | L41: =SUM(J41:K41) -> 3.56E+02 | M41: 4.42E+02 | N41: 9.19E+00 | O41: 4.51E+02 | P41: kg CO2-Eq
A42: WATER (kg) | B42: -6.17E+01 | F42: Fossil Depletion - FDP | G42: 1.30E+02 | H42: 1.87E+00 | I42: 1.32E+02 | J42: 1.30E+02 | K42: 1.87E+00 | L42: 1.32E+02 | M42: 1.30E+02 | N42: 1.87E+00 | O42: 1.32E+02 | P42: kg oil-Eq
F43: Freshwater Ecotoxicity - FETP | G43: 6.77E-07 | H43: 0.00E+00 | I43: 6.77E-07 | J43: 1.53E-07 | K43: 0.00E+00 | L43: 1.53E-07 | M43: 1.53E-07 | N43: 0.00E+00 | O43: 1.53E-07 | P43: kg 1,4-DCB-Eq
F44: Freshwater Eutrophication - FEP | G44: 0.00E+00 | H44: 0.00E+00 | I44: 0.00E+00 | J44: 0.00E+00 | K44: 0.00E+00 | L44: 0.00E+00 | M44: 0.00E+00 | N44: 0.00E+00 | O44: 0.00E+00 | P44: kg P-Eq
F45: Human Toxicity - HTP | G45: 7.71E-02 | H45: 0.00E+00 | I45: 7.71E-02 | J45: 3.83E-02 | K45: 0.00E+00 | L45: 3.83E-02 | M45: 2.71E-02 | N45: 0.00E+00 | O45: 2.71E-02 | P45: kg 1,4-DCB-Eq
F46: Ionising Radiation - IRP_HE | G46: 0.00E+00 | H46: 0.00E+00 | I46: 0.00E+00 | J46: 0.00E+00 | K46: 0.00E+00 | L46: 0.00E+00 | M46: 0.00E+00 | N46: 0.00E+00 | O46: 0.00E+00 | P46: kg U235-Eq
F47: Marine Ecotoxicity - METP | G47: 3.52E-03 | H47: 0.00E+00 | I47: 3.52E-03 | J47: 2.83E-05 | K47: 0.00E+00 | L47: 2.83E-05 | M47: 2.83E-05 | N47: 0.00E+00 | O47: 2.83E-05 | P47: kg 1,4-DCB-Eq
F48: Marine Eutrophication - MEP | G48: 1.03E-02 | H48: 0.00E+00 | I48: 1.03E-02 | J48: 1.03E-02 | K48: 0.00E+00 | L48: 1.03E-02 | M48: 1.03E-02 | N48: 0.00E+00 | O48: 1.03E-02 | P48: kg N-Eq
F49: Metal Depletion - MDP | G49: 0.00E+00 | H49: 8.15E+00 | I49: 8.15E+00 | J49: 0.00E+00 | K49: 8.15E+00 | L49: 8.15E+00 | M49: 0.00E+00 | N49: 8.15E+00 | O49: 8.15E+00 | P49: kg Fe-Eq
F50: Natural land Transformation - NLTP | G50: 0.00E+00 | H50: 0.00E+00 | I50: 0.00E+00 | J50: 0.00E+00 | K50: 0.00E+00 | L50: 0.00E+00 | M50: 0.00E+00 | N50: 0.00E+00 | O50: 0.00E+00 | P50: m2
F51: Ozone Depletion - ODP | G51: 0.00E+00 | H51: 0.00E+00 | I51: 0.00E+00 | J51: 0.00E+00 | K51: 0.00E+00 | L51: 0.00E+00 | M51: 0.00E+00 | N51: 0.00E+00 | O51: 0.00E+00 | P51: kg CFC-11-Eq
F52: Particulate Matter Formation - PMFP | G52: 6.40E-02 | H52: 2.00E-02 | I52: 8.40E-02 | J52: 6.40E-02 | K52: 2.00E-02 | L52: 8.40E-02 | M52: 6.40E-02 | N52: 2.00E-02 | O52: 8.40E-02 | P52: kg PM10-Eq
F53: Photochemical Oxidant Formation - POFP | G53: 3.04E-01 | H53: 1.00E-02 | I53: 3.14E-01 | J53: 3.04E-01 | K53: 1.00E-02 | L53: 3.14E-01 | M53: 3.04E-01 | N53: 1.00E-02 | O53: 3.14E-01 | P53: kg NMVOC
F54: Terrestrial Acidification - TAP | G54: 2.03E-01 | H54: 3.00E-02 | I54: 2.33E-01 | J54: 1.64E-01 | K54: 3.00E-02 | L54: 1.94E-01 | M54: 1.45E-01 | N54: 3.00E-02 | O54: 1.75E-01 | P54: kg SO2-Eq
F55: Terrestrial Ecotoxicity - TETP | G55: 8.50E-05 | H55: 0.00E+00 | I55: 8.50E-05 | J55: 4.69E-06 | K55: 0.00E+00 | L55: 4.69E-06 | M55: 4.69E-06 | N55: 0.00E+00 | O55: 4.69E-06 | P55: kg 1,4-DCB-Eq
F56: Urban Land Occupation - ULOP | G56: 0.00E+00 | H56: 0.00E+00 | I56: 0.00E+00 | J56: 0.00E+00 | K56: 0.00E+00 | L56: 0.00E+00 | M56: 0.00E+00 | N56: 0.00E+00 | O56: 0.00E+00 | P56: m2
F57: Water Depletion - WDP | G57: 8.36E+01 | H57: 0.00E+00 | I57: 8.36E+01 | J57: 8.36E+01 | K57: 0.00E+00 | L57: 8.36E+01 | M57: 8.36E+01 | N57: 0.00E+00 | O57: 8.36E+01 | P57: m3
F61: End-Point Characterizations | G61: Egalitarian (E) | J61: Heirarchist (H) | M61: Individualist (I)
F62: End-Point Category | G62: Operation | H62: Stack Construction | I62: Total | J62: Operation | K62: Stack Construction | L62: Total | M62: Operation | N62: Stack Construction | O62: Total | P62: Units
F63: Ecosystem Quality - Agricultural Land Occupation | G63: 0.00E+00 | H63: 0.00E+00 | I63: =SUM(G63:H63) -> 0.00E+00 | J63: 0.00E+00 | K63: 0.00E+00 | L63: =SUM(J63:K63) -> 0.00E+00 | M63: 0.00E+00 | N63: 0.00E+00 | O63: =SUM(M63:N63) -> 0.00E+00 | P63: points
F64: Ecosystem Quality - Climate Change | G64: 9.39E-01 | H64: 3.00E-02 | I64: 9.69E-01 | J64: 1.20E+00 | K64: 3.00E-02 | L64: 1.23E+00 | M64: 1.75E+00 | N64: 4.00E-02 | O64: 1.79E+00 | P64: points
F65: Ecosystem Quality - Freshwater Ecotoxicity | G65: 9.40E-11 | H65: 0.00E+00 | I65: 9.40E-11 | J65: 5.76E-11 | K65: 0.00E+00 | L65: 5.76E-11 | M65: 6.60E-11 | N65: 0.00E+00 | O65: 6.60E-11 | P65: points
F66: Ecosystem Quality - Freshwater Eutrophication | G66: 0.00E+00 | H66: 0.00E+00 | I66: 0.00E+00 | J66: 0.00E+00 | K66: 0.00E+00 | L66: 0.00E+00 | M66: 0.00E+00 | N66: 0.00E+00 | O66: 0.00E+00 | P66: points
F67: Ecosystem Quality - Marine Ecotoxicity | G67: 9.99E-08 | H67: 0.00E+00 | I67: 9.99E-08 | J67: 2.17E-09 | K67: 0.00E+00 | L67: 2.17E-09 | M67: 2.49E-09 | N67: 0.00E+00 | O67: 2.49E-09 | P67: points
F68: Ecosystem Quality - Natural Land Transformation | G68: 0.00E+00 | H68: 0.00E+00 | I68: 0.00E+00 | J68: 0.00E+00 | K68: 0.00E+00 | L68: 0.00E+00 | M68: 0.00E+00 | N68: 0.00E+00 | O68: 0.00E+00 | P68: points
F69: Ecosystem Quality - Terrestrial Acidification | G69: 4.66E-04 | H69: 0.00E+00 | I69: 4.66E-04 | J69: 4.14E-04 | K69: 0.00E+00 | L69: 4.14E-04 | M69: 1.10E-04 | N69: 0.00E+00 | O69: 1.10E-04 | P69: points
F70: Ecosystem Quality - Terrestrial Ecotoxicity | G70: 2.07E-06 | H70: 0.00E+00 | I70: 2.07E-06 | J70: 3.08E-07 | K70: 0.00E+00 | L70: 3.08E-07 | M70: 3.53E-07 | N70: 0.00E+00 | O70: 3.53E-07 | P70: points
F71: Ecosystem Quality - Total | G71: 9.40E-01 | H71: 3.00E-02 | I71: 9.70E-01 | J71: 1.20E+00 | K71: 3.00E-02 | L71: 1.23E+00 | M71: 1.75E+00 | N71: 4.00E-02 | O71: 1.79E+00 | P71: points
F72: Ecosystem Quality - Urban Land Occupation | G72: 0.00E+00 | H72: 0.00E+00 | I72: 0.00E+00 | J72: 0.00E+00 | K72: 0.00E+00 | L72: 0.00E+00 | M72: 0.00E+00 | N72: 0.00E+00 | O72: 0.00E+00 | P72: points
F73: Human Health - Climate Change | G73: 1.83E+01 | H73: 5.40E-01 | I73: 1.88E+01 | J73: 1.44E+01 | K73: 3.80E-01 | L73: 1.48E+01 | M73: 1.40E+01 | N73: 2.90E-01 | O73: 1.43E+01 | P73: points
F74: Human Health - Human Toxicity | G74: 9.03E-04 | H74: 0.00E+00 | I74: 9.03E-04 | J74: 7.94E-04 | K74: 0.00E+00 | L74: 7.94E-04 | M74: 5.06E-04 | N74: 0.00E+00 | O74: 5.06E-04 | P74: points
F75: Human Health - Ionising Radiation | G75: 0.00E+00 | H75: 0.00E+00 | I75: 0.00E+00 | J75: 0.00E+00 | K75: 0.00E+00 | L75: 0.00E+00 | M75: 0.00E+00 | N75: 0.00E+00 | O75: 0.00E+00 | P75: points
F76: Human Health - Ozone Depletion | G76: 0.00E+00 | H76: 0.00E+00 | I76: 0.00E+00 | J76: 0.00E+00 | K76: 0.00E+00 | L76: 0.00E+00 | M76: 0.00E+00 | N76: 0.00E+00 | O76: 0.00E+00 | P76: points
F77: Human Health - Particulate Matter Formation | G77: 2.79E-01 | H77: 1.10E-01 | I77: 3.89E-01 | J77: 4.93E-01 | K77: 1.90E-01 | L77: 6.83E-01 | M77: 4.44E-01 | N77: 1.70E-01 | O77: 6.14E-01 | P77: points
F78: Human Health - Photochemical Oxidant Formation | G78: 1.98E-04 | H78: 0.00E+00 | I78: 1.98E-04 | J78: 3.51E-04 | K78: 0.00E+00 | L78: 3.51E-04 | M78: 3.16E-04 | N78: 0.00E+00 | O78: 3.16E-04 | P78: points
F79: Human Health - Total | G79: 1.86E+01 | H79: 6.40E-01 | I79: 1.92E+01 | J79: 1.49E+01 | K79: 5.70E-01 | L79: 1.54E+01 | M79: 1.45E+01 | N79: 4.60E-01 | O79: 1.49E+01 | P79: points
F80: Resources - Fossil Depletion | G80: 1.76E+01 | H80: 2.50E-01 | I80: 1.79E+01 | J80: 1.76E+01 | K80: 2.50E-01 | L80: 1.79E+01 | M80: 1.37E+01 | N80: 2.00E-01 | O80: 1.39E+01 | P80: points
F81: Resources - Metal Depletion | G81: 0.00E+00 | H81: 0.00E+00 | I81: 0.00E+00 | J81: 0.00E+00 | K81: 0.00E+00 | L81: 0.00E+00 | M81: 0.00E+00 | N81: 0.00E+00 | O81: 0.00E+00 | P81: points
F82: Resources - Total | G82: 1.76E+01 | H82: 2.50E-01 | I82: 1.79E+01 | J82: 1.76E+01 | K82: 2.50E-01 | L82: 1.79E+01 | M82: 1.37E+01 | N82: 2.00E-01 | O82: 1.39E+01 | P82: points
F83: Total | G83: 3.71E+01 | H83: 9.24E-01 | I83: 3.80E+01 | J83: 3.37E+01 | K83: 8.53E-01 | L83: 3.45E+01 | M83: 2.99E+01 | N83: 6.93E-01 | O83: 3.06E+01 | P83: points

Sheet SOFC-2
A1: SOFC - Case 2
A5: Plant efficiency | B5: 61.00%
A6: Carbon Capture? | B6: NO
A7: Transmission Losses? | B7: YES
F8: Flow Inventory
A9: Emissions Data - NO CCS - AVERAGE Gas | F9: Inputs
A10: GHG Emissions - kg/MW-h Electricity Delivered | F10: Flow | G10: Flow property | H10: Unit | I10: Operation | J10: Stack Construction | K10: Total | L10: Flow type
A11: CO2 | B11: 2.99E+02 | F11: Chromium: 25.5% (chromite); 11.6% (crude ore) | G11: Mass | H11: kg | I11: 0.00E+00 | J11: 3.06E-01 | K11: =J11+I11 -> 3.06E-01 | L11: Resource (in-ground)
A12: N2O | B12: N/A | F12: Coal (hard) | G12: Mass | H12: kg | I12: 0.00E+00 | J12: 3.23E+00 | K12: =J12+I12 -> 3.23E+00 | L12: Resource (in-ground)
A13: CH4 | B13: 1.00E-02 | F13: Iron: 46% (ore); 25% (crude ore) | G13: Mass | H13: kg | I13: 0.00E+00 | J13: 7.46E-01 | K13: 7.46E-01 | L13: Resource (in-ground)
A14: Pollutants - kg/MW-h Electricity Delivered | F14: Natural Gas (44.1 MJ/kg) | G14: Mass | H14: kg | I14: 1.54E+02 | J14: 7.41E-01 | K14: 1.55E+02 | L14: Resource (in-ground)
A15: Pb | B15: N/A | F15: Nickel: 1.13% (sulfide); Ni 0.76% and Cu 0.76% (crude ore) | G15: Mass | H15: kg | I15: 0.00E+00 | J15: 9.99E-02 | K15: 9.99E-02 | L15: Resource (in-ground)
A16: Hg | B16: N/A | F16: Oil (crude) | G16: Mass | H16: kg | I16: 0.00E+00 | J16: 4.91E-02 | K16: 4.91E-02 | L16: Resource (in-ground)
A17: NH3 | B17: N/A | F17: Uranium (mined) | G17: Mass | H17: kg | I17: 0.00E+00 | J17: 1.24E-05 | K17: 1.24E-05 | L17: Resource (in-ground)
A18: CO | B18: 6.82E-03 | F18: Water (unspecified natural origin) | G18: Volume | H18: m3 | I18: 9.00E+01 | J18: 0.00E+00 | K18: 9.00E+01 | L18: Resource (in-ground)
A19: NOx | B19: N/A
A20: SOx | B20: N/A
A21: NMVOC | B21: 1.98E-03 | F21: Outputs
A22: Dust | B22: N/A | F22: Flow | G22: Flow property | H22: Unit | I22: Operation | J22: Stack Construction | K22: Total | L22: Flow type
A23: H2 | B23: 3.17E-02 | F23: Ammonia (NH3) | G23: Mass | H23: kg | I23: 1.51E-03 | J23: 0.00E+00 | K23: =SUM(I23:J23) -> 1.51E-03 | L23: Emission (to air)
A24: WATER (kg) | B24: 9.65E+00 | F24: Carbon Dioxide (CO2) | G24: Mass | H24: kg | I24: 3.18E+02 | J24: 1.08E+01 | K24: =SUM(I24:J24) -> 3.29E+02 | L24: Emission (to air)
F25: Carbon Monoxide (CO) | G25: Mass | H25: kg | I25: 7.96E-02 | J25: 3.28E-03 | K25: 8.29E-02 | L25: Emission (to air)
F26: Dinitrogen Monoxide (N2O) | G26: Mass | H26: kg | I26: 5.11E-04 | J26: 1.60E-04 | K26: 6.71E-04 | L26: Emission (to air)
A27: Emissions Data - NO CCS - AVERAGE Gas | F27: Hydrogen (H2) | G27: Mass | H27: kg | I27: 3.17E-02 | J27: 0.00E+00 | K27: 3.17E-02 | L27: Emission (to air)
A28: GHG Emissions - g/MJ Electricity Delivered | F28: Lead (Pb) | G28: Mass | H28: kg | I28: 1.01E-06 | J28: 0.00E+00 | K28: 1.01E-06 | L28: Emission (to air)
A29: CO2 | B29: 8.31E+01 | F29: Mercury (Hg) | G29: Mass | H29: kg | I29: 4.86E-08 | J29: 0.00E+00 | K29: 4.86E-08 | L29: Emission (to air)
A30: N2O | B30: N/A | F30: Methane (CH4) | G30: Mass | H30: kg | I30: 2.19E+00 | J30: 2.13E-04 | K30: 2.19E+00 | L30: Emission (to air)
A31: CH4 | B31: 2.78E-03 | F31: Nitrogen Oxides (NOx) | G31: Mass | H31: kg | I31: 2.82E-01 | J31: 9.94E-03 | K31: 2.91E-01 | L31: Emission (to air)
A32: Pollutants - g/MJ Electricity Delivered | F32: NMVOC (non-methane volatile organics) | G32: Mass | H32: kg | I32: 1.85E-02 | J32: 0.00E+00 | K32: 1.85E-02 | L32: Emission (to air)
A33: Pb | B33: N/A | F33: Particulates > 2.5 μm and < 10 μm | G33: Mass | H33: kg | I33: 3.55E-03 | J33: 2.11E-02 | K33: 2.46E-02 | L33: Emission (to air)
A34: Hg | B34: N/A | F34: SOFC Plant Electricity | G34: Energy | H34: MJ | I34: 3.60E+03 | J34: 0.00E+00 | K34: 3.60E+03 | L34: Product
A35: NH3 | B35: N/A | F35: Sulfur dioxide (SO2) | G35: Mass | H35: kg | I35: 1.45E-02 | J35: 2.73E-02 | K35: 4.18E-02 | L35: Emission (to air)
A36: CO | B36: 1.90E-03
A37: NOx | B37: N/A
A38: SOx | B38: N/A | F38: Mid-Point Characterizations | G38: Egalitarian (E) | J38: Heirarchist (H) | M38: Individualist (I)
A39: NMVOC | B39: 5.49E-04 | F39: Mid-Point Inventory | G39: Operation | H39: Stack Construction | I39: Total | J39: Operation | K39: Stack Construction | L39: Total | M39: Operation | N39: Stack Construction | O39: Total | P39: Units
A40: Dust | B40: N/A | F40: Agricultural Land Occupation - ALOP | G40: 0.00E+00 | H40: 0.00E+00 | I40: =SUM(G40:H40) -> 0.00E+00 | J40: 0.00E+00 | K40: 0.00E+00 | L40: =SUM(J40:K40) -> 0.00E+00 | M40: 0.00E+00 | N40: 0.00E+00 | O40: =SUM(M40:N40) -> 0.00E+00 | P40: m2
A41: H2 | B41: 8.81E-03 | F41: Climate Change - GWP | G41: 3.35E+02 | H41: 9.80E+00 | I41: 3.45E+02 | J41: 3.73E+02 | K41: 9.83E+00 | L41: 3.83E+02 | M41: 4.76E+02 | N41: 9.83E+00 | O41: 4.85E+02 | P41: kg CO2-Eq
A42: WATER (kg) | B42: 2.68E+00 | F42: Fossil Depletion - FDP | G42: 1.40E+02 | H42: 2.00E+00 | I42: 1.42E+02 | J42: 1.40E+02 | K42: 2.00E+00 | L42: 1.42E+02 | M42: 1.40E+02 | N42: 2.00E+00 | O42: 1.42E+02 | P42: kg oil-Eq
F43: Freshwater Ecotoxicity - FETP | G43: 7.28E-07 | H43: 0.00E+00 | I43: 7.28E-07 | J43: 1.65E-07 | K43: 0.00E+00 | L43: 1.65E-07 | M43: 1.65E-07 | N43: 0.00E+00 | O43: 1.65E-07 | P43: kg 1,4-DCB-Eq
F44: Freshwater Eutrophication - FEP | G44: 0.00E+00 | H44: 0.00E+00 | I44: 0.00E+00 | J44: 0.00E+00 | K44: 0.00E+00 | L44: 0.00E+00 | M44: 0.00E+00 | N44: 0.00E+00 | O44: 0.00E+00 | P44: kg P-Eq
F45: Human Toxicity - HTP | G45: 8.29E-02 | H45: 0.00E+00 | I45: 8.29E-02 | J45: 4.12E-02 | K45: 0.00E+00 | L45: 4.12E-02 | M45: 2.92E-02 | N45: 0.00E+00 | O45: 2.92E-02 | P45: kg 1,4-DCB-Eq
F46: Ionising Radiation - IRP_HE | G46: 0.00E+00 | H46: 0.00E+00 | I46: 0.00E+00 | J46: 0.00E+00 | K46: 0.00E+00 | L46: 0.00E+00 | M46: 0.00E+00 | N46: 0.00E+00 | O46: 0.00E+00 | P46: kg U235-Eq
F47: Marine Ecotoxicity - METP | G47: 3.78E-03 | H47: 0.00E+00 | I47: 3.78E-03 | J47: 3.04E-05 | K47: 0.00E+00 | L47: 3.04E-05 | M47: 3.04E-05 | N47: 0.00E+00 | O47: 3.04E-05 | P47: kg 1,4-DCB-Eq
F48: Marine Eutrophication - MEP | G48: 1.11E-02 | H48: 0.00E+00 | I48: 1.11E-02 | J48: 1.11E-02 | K48: 0.00E+00 | L48: 1.11E-02 | M48: 1.11E-02 | N48: 0.00E+00 | O48: 1.11E-02 | P48: kg N-Eq
F49: Metal Depletion - MDP | G49: 0.00E+00 | H49: 8.72E+00 | I49: 8.72E+00 | J49: 0.00E+00 | K49: 8.72E+00 | L49: 8.72E+00 | M49: 0.00E+00 | N49: 8.72E+00 | O49: 8.72E+00 | P49: kg Fe-Eq
F50: Natural land Transformation - NLTP | G50: 0.00E+00 | H50: 0.00E+00 | I50: 0.00E+00 | J50: 0.00E+00 | K50: 0.00E+00 | L50: 0.00E+00 | M50: 0.00E+00 | N50: 0.00E+00 | O50: 0.00E+00 | P50: m2
F51: Ozone Depletion - ODP | G51: 0.00E+00 | H51: 0.00E+00 | I51: 0.00E+00 | J51: 0.00E+00 | K51: 0.00E+00 | L51: 0.00E+00 | M51: 0.00E+00 | N51: 0.00E+00 | O51: 0.00E+00 | P51: kg CFC-11-Eq
F52: Particulate Matter Formation - PMFP | G52: 6.89E-02 | H52: 3.00E-02 | I52: 9.89E-02 | J52: 6.89E-02 | K52: 3.00E-02 | L52: 9.89E-02 | M52: 6.89E-02 | N52: 3.00E-02 | O52: 9.89E-02 | P52: kg PM10-Eq
F53: Photochemical Oxidant Formation - POFP | G53: 3.27E-01 | H53: 1.00E-02 | I53: 3.37E-01 | J53: 3.27E-01 | K53: 1.00E-02 | L53: 3.37E-01 | M53: 3.27E-01 | N53: 1.00E-02 | O53: 3.37E-01 | P53: kg NMVOC
F54: Terrestrial Acidification - TAP | G54: 2.19E-01 | H54: 3.00E-02 | I54: 2.49E-01 | J54: 1.76E-01 | K54: 3.00E-02 | L54: 2.06E-01 | M54: 1.55E-01 | N54: 3.00E-02 | O54: 1.85E-01 | P54: kg SO2-Eq
F55: Terrestrial Ecotoxicity - TETP | G55: 9.14E-05 | H55: 0.00E+00 | I55: 9.14E-05 | J55: 5.04E-06 | K55: 0.00E+00 | L55: 5.04E-06 | M55: 5.04E-06 | N55: 0.00E+00 | O55: 5.04E-06 | P55: kg 1,4-DCB-Eq
F56: Urban Land Occupation - ULOP | G56: 0.00E+00 | H56: 0.00E+00 | I56: 0.00E+00 | J56: 0.00E+00 | K56: 0.00E+00 | L56: 0.00E+00 | M56: 0.00E+00 | N56: 0.00E+00 | O56: 0.00E+00 | P56: m2
F57: Water Depletion - WDP | G57: 9.00E+01 | H57: 0.00E+00 | I57: 9.00E+01 | J57: 9.00E+01 | K57: 0.00E+00 | L57: 9.00E+01 | M57: 9.00E+01 | N57: 0.00E+00 | O57: 9.00E+01 | P57: m3
F61: End-Point Characterizations | G61: Egalitarian (E) | J61: Heirarchist (H) | M61: Individualist (I)
F62: End-Point Category | G62: Operation | H62: Stack Construction | I62: Total | J62: Operation | K62: Stack Construction | L62: Total | M62: Operation | N62: Stack Construction | O62: Total | P62: Units
F63: Ecosystem Quality - Agricultural Land Occupation | G63: 0.00E+00 | H63: 0.00E+00 | I63: =SUM(G63:H63) -> 0.00E+00 | J63: 0.00E+00 | K63: 0.00E+00 | L63: =SUM(J63:K63) -> 0.00E+00 | M63: 0.00E+00 | N63: 0.00E+00 | O63: =SUM(M63:N63) -> 0.00E+00 | P63: points
F64: Ecosystem Quality - Climate Change | G64: 1.01E+00 | H64: 3.00E-02 | I64: 1.04E+00 | J64: 1.29E+00 | K64: 3.00E-02 | L64: 1.32E+00 | M64: 1.89E+00 | N64: 4.00E-02 | O64: 1.93E+00 | P64: points
F65: Ecosystem Quality - Freshwater Ecotoxicity | G65: 1.01E-10 | H65: 0.00E+00 | I65: 1.01E-10 | J65: 6.19E-11 | K65: 0.00E+00 | L65: 6.19E-11 | M65: 7.10E-11 | N65: 0.00E+00 | O65: 7.10E-11 | P65: points
F66: Ecosystem Quality - Freshwater Eutrophication | G66: 0.00E+00 | H66: 0.00E+00 | I66: 0.00E+00 | J66: 0.00E+00 | K66: 0.00E+00 | L66: 0.00E+00 | M66: 0.00E+00 | N66: 0.00E+00 | O66: 0.00E+00 | P66: points
F67: Ecosystem Quality - Marine Ecotoxicity | G67: 1.07E-07 | H67: 0.00E+00 | I67: 1.07E-07 | J67: 2.33E-09 | K67: 0.00E+00 | L67: 2.33E-09 | M67: 2.68E-09 | N67: 0.00E+00 | O67: 2.68E-09 | P67: points
F68: Ecosystem Quality - Natural Land Transformation | G68: 0.00E+00 | H68: 0.00E+00 | I68: 0.00E+00 | J68: 0.00E+00 | K68: 0.00E+00 | L68: 0.00E+00 | M68: 0.00E+00 | N68: 0.00E+00 | O68: 0.00E+00 | P68: points
F69: Ecosystem Quality - Terrestrial Acidification | G69: 5.01E-04 | H69: 0.00E+00 | I69: 5.01E-04 | J69: 4.45E-04 | K69: 0.00E+00 | L69: 4.45E-04 | M69: 1.18E-04 | N69: 0.00E+00 | O69: 1.18E-04 | P69: points
F70: Ecosystem Quality - Terrestrial Ecotoxicity | G70: 2.22E-06 | H70: 0.00E+00 | I70: 2.22E-06 | J70: 3.31E-07 | K70: 0.00E+00 | L70: 3.31E-07 | M70: 3.80E-07 | N70: 0.00E+00 | O70: 3.80E-07 | P70: points
F71: Ecosystem Quality - Total | G71: 1.01E+00 | H71: 3.00E-02 | I71: 1.04E+00 | J71: 1.29E+00 | K71: 3.00E-02 | L71: 1.32E+00 | M71: 1.89E+00 | N71: 4.00E-02 | O71: 1.93E+00 | P71: points
F72: Ecosystem Quality - Urban Land Occupation | G72: 0.00E+00 | H72: 0.00E+00 | I72: 0.00E+00 | J72: 0.00E+00 | K72: 0.00E+00 | L72: 0.00E+00 | M72: 0.00E+00 | N72: 0.00E+00 | O72: 0.00E+00 | P72: points
F73: Human Health - Climate Change | G73: 1.97E+01 | H73: 5.80E-01 | I73: 2.02E+01 | J73: 1.55E+01 | K73: 4.10E-01 | L73: 1.59E+01 | M73: 1.51E+01 | N73: 3.10E-01 | O73: 1.54E+01 | P73: points
F74: Human Health - Human Toxicity | G74: 9.71E-04 | H74: 0.00E+00 | I74: 9.71E-04 | J74: 8.54E-04 | K74: 0.00E+00 | L74: 8.54E-04 | M74: 5.44E-04 | N74: 0.00E+00 | O74: 5.44E-04 | P74: points
F75: Human Health - Ionising Radiation | G75: 0.00E+00 | H75: 0.00E+00 | I75: 0.00E+00 | J75: 0.00E+00 | K75: 0.00E+00 | L75: 0.00E+00 | M75: 0.00E+00 | N75: 0.00E+00 | O75: 0.00E+00 | P75: points
F76: Human Health - Ozone Depletion | G76: 0.00E+00 | H76: 0.00E+00 | I76: 0.00E+00 | J76: 0.00E+00 | K76: 0.00E+00 | L76: 0.00E+00 | M76: 0.00E+00 | N76: 0.00E+00 | O76: 0.00E+00 | P76: points
F77: Human Health - Particulate Matter Formation | G77: 3.00E-01 | H77: 1.10E-01 | I77: 4.10E-01 | J77: 5.30E-01 | K77: 2.00E-01 | L77: 7.30E-01 | M77: 4.77E-01 | N77: 1.80E-01 | O77: 6.57E-01 | P77: points
F78: Human Health - Photochemical Oxidant Formation | G78: 2.13E-04 | H78: 0.00E+00 | I78: 2.13E-04 | J78: 3.78E-04 | K78: 0.00E+00 | L78: 3.78E-04 | M78: 3.40E-04 | N78: 0.00E+00 | O78: 3.40E-04 | P78: points
F79: Human Health - Total | G79: 2.00E+01 | H79: 6.90E-01 | I79: 2.07E+01 | J79: 1.60E+01 | K79: 6.10E-01 | L79: 1.66E+01 | M79: 1.56E+01 | N79: 4.90E-01 | O79: 1.61E+01 | P79: points
F80: Resources - Fossil Depletion | G80: 1.89E+01 | H80: 2.70E-01 | I80: 1.92E+01 | J80: 1.89E+01 | K80: 2.70E-01 | L80: 1.92E+01 | M80: 1.47E+01 | N80: 2.10E-01 | O80: 1.49E+01 | P80: points
F81: Resources - Metal Depletion | G81: 0.00E+00 | H81: 0.00E+00 | I81: 0.00E+00 | J81: 0.00E+00 | K81: 0.00E+00 | L81: 0.00E+00 | M81: 0.00E+00 | N81: 0.00E+00 | O81: 0.00E+00 | P81: points
F82: Resources - Total | G82: 1.89E+01 | H82: 2.70E-01 | I82: 1.92E+01 | J82: 1.89E+01 | K82: 2.70E-01 | L82: 1.92E+01 | M82: 1.47E+01 | N82: 2.10E-01 | O82: 1.49E+01 | P82: points
F83: Total | G83: 3.99E+01 | H83: 9.89E-01 | I83: 4.09E+01 | J83: 3.62E+01 | K83: 9.12E-01 | L83: 3.71E+01 | M83: 3.22E+01 | N83: 7.41E-01 | O83: 3.29E+01 | P83: points

Sheet SOFC-3
A1: SOFC - Case 3
A5: Plant efficiency | B5: 64.80%
A6: Carbon Capture? | B6: YES
A7: Transmission Losses? | B7: NO
F8: Flow Inventory
A9: Emissions Data - NO CCS - AVERAGE Gas | F9: Inputs
A10: GHG Emissions - kg/MW-h Electricity Delivered | F10: Flow | G10: Flow property | H10: Unit | I10: Operation | J10: Stack Construction | K10: Total | L10: Flow type
A11: CO2 | B11: 3.38E+00 | F11: Chromium: 25.5% (chromite); 11.6% (crude ore) | G11: Mass | H11: kg | I11: 0.00E+00 | J11: 3.06E-01 | K11: =J11+I11 -> 3.06E-01 | L11: Resource (in-ground)
A12: N2O | B12: N/A | F12: Coal (hard) | G12: Mass | H12: kg | I12: 0.00E+00 | J12: 3.23E+00 | K12: =J12+I12 -> 3.23E+00 | L12: Resource (in-ground)
A13: CH4 | B13: 9.32E-05 | F13: Iron: 46% (ore); 25% (crude ore) | G13: Mass | H13: kg | I13: 0.00E+00 | J13: 7.46E-01 | K13: 7.46E-01 | L13: Resource (in-ground)
A14: Pollutants - kg/MW-h Electricity Delivered | F14: Natural Gas (44.1 MJ/kg) | G14: Mass | H14: kg | I14: 1.45E+02 | J14: 7.41E-01 | K14: 1.46E+02 | L14: Resource (in-ground)
A15: Pb | B15: N/A | F15: Nickel: 1.13% (sulfide); Ni 0.76% and Cu 0.76% (crude ore) | G15: Mass | H15: kg | I15: 0.00E+00 | J15: 9.99E-02 | K15: 9.99E-02 | L15: Resource (in-ground)
A16: Hg | B16: N/A | F16: Oil (crude) | G16: Mass | H16: kg | I16: 0.00E+00 | J16: 4.91E-02 | K16: 4.91E-02 | L16: Resource (in-ground)
A17: NH3 | B17: N/A | F17: Uranium (mined) | G17: Mass | H17: kg | I17: 0.00E+00 | J17: 1.24E-05 | K17: 1.24E-05 | L17: Resource (in-ground)
A18: CO | B18: 6.34E-05 | F18: Water (unspecified natural origin) | G18: Volume | H18: m3 | I18: 8.47E+01 | J18: 0.00E+00 | K18: 8.47E+01 | L18: Resource (in-ground)
A19: NOx | B19: N/A
A20: SOx | B20: N/A
A21: NMVOC | B21: 1.77E-03 | F21: Outputs
A22: Dust | B22: N/A | F22: Flow | G22: Flow property | H22: Unit | I22: Operation | J22: Stack Construction | K22: Total | L22: Flow type
A23: H2 | B23: 2.95E-04 | F23: Ammonia (NH3) | G23: Mass | H23: kg | I23: 1.42E-03 | J23: 0.00E+00 | K23: =SUM(I23:J23) -> 1.42E-03 | L23: Emission (to air)
A24: WATER (kg) | B24: 8.89E+00 | F24: Carbon Dioxide (CO2) | G24: Mass | H24: kg | I24: 2.10E+01 | J24: 1.08E+01 | K24: =SUM(I24:J24) -> 3.18E+01 | L24: Emission (to air)
F25: Carbon Monoxide (CO) | G25: Mass | H25: kg | I25: 6.86E-02 | J25: 3.28E-03 | K25: 7.19E-02 | L25: Emission (to air)
F26: Dinitrogen Monoxide (N2O) | G26: Mass | H26: kg | I26: 4.81E-04 | J26: 1.60E-04 | K26: 6.42E-04 | L26: Emission (to air)
A27: Emissions Data - NO CCS - AVERAGE Gas | F27: Hydrogen (H2) | G27: Mass | H27: kg | I27: 2.95E-04 | J27: 0.00E+00 | K27: 2.95E-04 | L27: Emission (to air)
A28: GHG Emissions - g/MJ Electricity Delivered | F28: Lead (Pb) | G28: Mass | H28: kg | I28: 9.53E-07 | J28: 0.00E+00 | K28: 9.53E-07 | L28: Emission (to air)
A29: CO2 | B29: 9.39E-01 | F29: Mercury (Hg) | G29: Mass | H29: kg | I29: 4.58E-08 | J29: 0.00E+00 | K29: 4.58E-08 | L29: Emission (to air)
A30: N2O | B30: N/A | F30: Methane (CH4) | G30: Mass | H30: kg | I30: 2.05E+00 | J30: 2.13E-04 | K30: 2.05E+00 | L30: Emission (to air)
A31: CH4 | B31: 2.59E-05 | F31: Nitrogen Oxides (NOx) | G31: Mass | H31: kg | I31: 2.65E-01 | J31: 9.94E-03 | K31: 2.75E-01 | L31: Emission (to air)
A32: Pollutants - g/MJ Electricity Delivered | F32: NMVOC (non-methane volatile organics) | G32: Mass | H32: kg | I32: 1.74E-02 | J32: 0.00E+00 | K32: 1.74E-02 | L32: Emission (to air)
A33: Pb | B33: N/A | F33: Particulates > 2.5 μm and < 10 μm | G33: Mass | H33: kg | I33: 3.39E-03 | J33: 2.11E-02 | K33: 2.45E-02 | L33: Emission (to air)
A34: Hg | B34: N/A | F34: SOFC Plant Electricity | G34: Energy | H34: MJ | I34: 3.60E+03 | J34: 0.00E+00 | K34: 3.60E+03 | L34: Product
A35: NH3 | B35: N/A | F35: Sulfur dioxide (SO2) | G35: Mass | H35: kg | I35: 1.37E-02 | J35: 2.73E-02 | K35: 4.10E-02 | L35: Emission (to air)
A36: CO | B36: 1.76E-05
A37: NOx | B37: N/A
A38: SOx | B38: N/A | F38: Mid-Point Characterizations | G38: Egalitarian (E) | J38: Heirarchist (H) | M38: Individualist (I)
A39: NMVOC | B39: 4.91E-04 | F39: Mid-Point Inventory | G39: Operation | H39: Stack Construction | I39: Total | J39: Operation | K39: Stack Construction | L39: Total | M39: Operation | N39: Stack Construction | O39: Total | P39: Units
A40: Dust | B40: N/A | F40: Agricultural Land Occupation - ALOP | G40: 0.00E+00 | H40: 0.00E+00 | I40: =SUM(G40:H40) -> 0.00E+00 | J40: 0.00E+00 | K40: 0.00E+00 | L40: =SUM(J40:K40) -> 0.00E+00 | M40: 0.00E+00 | N40: 0.00E+00 | O40: =SUM(M40:N40) -> 0.00E+00 | P40: m2
A41: H2 | B41: 8.19E-05 | F41: Climate Change - GWP | G41: 3.67E+01 | H41: 9.16E+00 | I41: 4.58E+01 | J41: 7.24E+01 | K41: 9.18E+00 | L41: 8.15E+01 | M41: 1.69E+02 | N41: 9.19E+00 | O41: 1.78E+02 | P41: kg CO2-Eq
A42: WATER (kg) | B42: 2.47E+00 | F42: Fossil Depletion - FDP | G42: 1.32E+02 | H42: 1.87E+00 | I42: 1.34E+02 | J42: 1.32E+02 | K42: 1.87E+00 | L42: 1.34E+02 | M42: 1.32E+02 | N42: 1.87E+00 | O42: 1.34E+02 | P42: kg oil-Eq
F43: Freshwater Ecotoxicity - FETP | G43: 6.86E-07 | H43: 0.00E+00 | I43: 6.86E-07 | J43: 1.55E-07 | K43: 0.00E+00 | L43: 1.55E-07 | M43: 1.55E-07 | N43: 0.00E+00 | O43: 1.55E-07 | P43: kg 1,4-DCB-Eq
A44: CO2 Sequestration Data (units in kg/MW-h) | F44: Freshwater Eutrophication - FEP | G44: 0.00E+00 | H44: 0.00E+00 | I44: 0.00E+00 | J44: 0.00E+00 | K44: 0.00E+00 | L44: 0.00E+00 | M44: 0.00E+00 | N44: 0.00E+00 | O44: 0.00E+00 | P44: kg P-Eq
A45: Total CO2 potentially emitted | B45: 2.78E+02 | F45: Human Toxicity - HTP | G45: 7.81E-02 | H45: 0.00E+00 | I45: 7.81E-02 | J45: 3.87E-02 | K45: 0.00E+00 | L45: 3.87E-02 | M45: 2.74E-02 | N45: 0.00E+00 | O45: 2.74E-02 | P45: kg 1,4-DCB-Eq
A46: CO2 captured | B46: 2.75E+02 | F46: Ionising Radiation - IRP_HE | G46: 0.00E+00 | H46: 0.00E+00 | I46: 0.00E+00 | J46: 0.00E+00 | K46: 0.00E+00 | L46: 0.00E+00 | M46: 0.00E+00 | N46: 0.00E+00 | O46: 0.00E+00 | P46: kg U235-Eq
A47: CO2 fugitive | B47: 2.78E+00 | F47: Marine Ecotoxicity - METP | G47: 3.56E-03 | H47: 0.00E+00 | I47: 3.56E-03 | J47: 2.86E-05 | K47: 0.00E+00 | L47: 2.86E-05 | M47: 2.86E-05 | N47: 0.00E+00 | O47: 2.86E-05 | P47: kg 1,4-DCB-Eq
A48: CO2 uncaptured | B48: 6.00E-01 | F48: Marine Eutrophication - MEP | G48: 1.04E-02 | H48: 0.00E+00 | I48: 1.04E-02 | J48: 1.04E-02 | K48: 0.00E+00 | L48: 1.04E-02 | M48: 1.04E-02 | N48: 0.00E+00 | O48: 1.04E-02 | P48: kg N-Eq
A49: Total CO2 emitted | B49: 3.38E+00 | F49: Metal Depletion - MDP | G49: 0.00E+00 | H49: 8.15E+00 | I49: 8.15E+00 | J49: 0.00E+00 | K49: 8.15E+00 | L49: 8.15E+00 | M49: 0.00E+00 | N49: 8.15E+00 | O49: 8.15E+00 | P49: kg Fe-Eq
F50: Natural land Transformation - NLTP | G50: 0.00E+00 | H50: 0.00E+00 | I50: 0.00E+00 | J50: 0.00E+00 | K50: 0.00E+00 | L50: 0.00E+00 | M50: 0.00E+00 | N50: 0.00E+00 | O50: 0.00E+00 | P50: m2
A51: Pipeline Emissions Data - CCS - AVERAGE Gas | F51: Ozone Depletion - ODP | G51: 0.00E+00 | H51: 0.00E+00 | I51: 0.00E+00 | J51: 0.00E+00 | K51: 0.00E+00 | L51: 0.00E+00 | M51: 0.00E+00 | N51: 0.00E+00 | O51: 0.00E+00 | P51: kg CFC-11-Eq
A52: GHG Emissions -kg/kg CO2 Sequestered | F52: Particulate Matter Formation - PMFP | G52: 6.49E-02 | H52: 2.00E-02 | I52: 8.49E-02 | J52: 6.49E-02 | K52: 2.00E-02 | L52: 8.49E-02 | M52: 6.49E-02 | N52: 2.00E-02 | O52: 8.49E-02 | P52: kg PM10-Eq
A53: CO2 | B53: 9.50E-05 | F53: Photochemical Oxidant Formation - POFP | G53: 3.08E-01 | H53: 1.00E-02 | I53: 3.18E-01 | J53: 3.08E-01 | K53: 1.00E-02 | L53: 3.18E-01 | M53: 3.08E-01 | N53: 1.00E-02 | O53: 3.18E-01 | P53: kg NMVOC
A54: N2O | B54: 1.92E-09 | F54: Terrestrial Acidification - TAP | G54: 2.06E-01 | H54: 3.00E-02 | I54: 2.36E-01 | J54: 1.66E-01 | K54: 3.00E-02 | L54: 1.96E-01 | M54: 1.46E-01 | N54: 3.00E-02 | O54: 1.76E-01 | P54: kg SO2-Eq
A55: CH4 | B55: 8.16E-08 | F55: Terrestrial Ecotoxicity - TETP | G55: 8.61E-05 | H55: 0.00E+00 | I55: 8.61E-05 | J55: 4.75E-06 | K55: 0.00E+00 | L55: 4.75E-06 | M55: 4.75E-06 | N55: 0.00E+00 | O55: 4.75E-06 | P55: kg 1,4-DCB-Eq
A56: Pollutants - kg/kg CO2 Sequestered | F56: Urban Land Occupation - ULOP | G56: 0.00E+00 | H56: 0.00E+00 | I56: 0.00E+00 | J56: 0.00E+00 | K56: 0.00E+00 | L56: 0.00E+00 | M56: 0.00E+00 | N56: 0.00E+00 | O56: 0.00E+00 | P56: m2
A57: Pb | B57: 3.81E-13 | F57: Water Depletion - WDP | G57: 8.47E+01 | H57: 0.00E+00 | I57: 8.47E+01 | J57: 8.47E+01 | K57: 0.00E+00 | L57: 8.47E+01 | M57: 8.47E+01 | N57: 0.00E+00 | O57: 8.47E+01 | P57: m3
A58: Hg | B58: 2.70E-14
A59: NH3 | B59: 1.98E-09
A60: CO | B60: 3.18E-07 | F60: End-Point Characterizations | G60: Egalitarian (E) | J60: Heirarchist (H) | M60: Individualist (I)
A61: NOx | B61: 7.72E-07 | F61: End-Point Category | G61: Operation | H61: Stack Construction | I61: Total | J61: Operation | K61: Stack Construction | L61: Total | M61: Operation | N61: Stack Construction | O61: Total | P61: Units
A62: SOx | B62: 5.43E-08 | F62: Ecosystem Quality - Agricultural Land Occupation | G62: 0.00E+00 | H62: 0.00E+00 | I62: =SUM(G62:H62) -> 0.00E+00 | J62: 0.00E+00 | K62: 0.00E+00 | L62: =SUM(J62:K62) -> 0.00E+00 | M62: 0.00E+00 | N62: 0.00E+00 | O62: =SUM(M62:N62) -> 0.00E+00 | P62: points
A63: NMVOC | B63: 2.97E-08 | F63: Ecosystem Quality - Climate Change | G63: 1.11E-01 | H63: 3.00E-02 | I63: 1.41E-01 | J63: 2.50E-01 | K63: 3.00E-02 | L63: 2.80E-01 | M63: 6.68E-01 | N63: 4.00E-02 | O63: 7.08E-01 | P63: points
A64: Dust | B64: 1.75E-07 | F64: Ecosystem Quality - Freshwater Ecotoxicity | G64: 9.52E-11 | H64: 0.00E+00 | I64: 9.52E-11 | J64: 5.83E-11 | K64: 0.00E+00 | L64: 5.83E-11 | M64: 6.68E-11 | N64: 0.00E+00 | O64: 6.68E-11 | P64: points
A65: WATER (kg) | B65: 4.12E-05 | F65: Ecosystem Quality - Freshwater Eutrophication | G65: 0.00E+00 | H65: 0.00E+00 | I65: 0.00E+00 | J65: 0.00E+00 | K65: 0.00E+00 | L65: 0.00E+00 | M65: 0.00E+00 | N65: 0.00E+00 | O65: 0.00E+00 | P65: points
F66: Ecosystem Quality - Marine Ecotoxicity | G66: 1.01E-07 | H66: 0.00E+00 | I66: 1.01E-07 | J66: 2.20E-09 | K66: 0.00E+00 | L66: 2.20E-09 | M66: 2.52E-09 | N66: 0.00E+00 | O66: 2.52E-09 | P66: points
A67: Pipeline Emissions Data - CCS - AVERAGE Gas | F67: Ecosystem Quality - Natural Land Transformation | G67: 0.00E+00 | H67: 0.00E+00 | I67: 0.00E+00 | J67: 0.00E+00 | K67: 0.00E+00 | L67: 0.00E+00 | M67: 0.00E+00 | N67: 0.00E+00 | O67: 0.00E+00 | P67: points
A68: GHG Emissions -kg/MW-h Electricity Delivered | F68: Ecosystem Quality - Terrestrial Acidification | G68: 4.72E-04 | H68: 0.00E+00 | I68: 4.72E-04 | J68: 4.19E-04 | K68: 0.00E+00 | L68: 4.19E-04 | M68: 1.11E-04 | N68: 0.00E+00 | O68: 1.11E-04 | P68: points
A69: CO2 | B69: 2.61E-02 | F69: Ecosystem Quality - Terrestrial Ecotoxicity | G69: 2.09E-06 | H69: 0.00E+00 | I69: 2.09E-06 | J69: 3.12E-07 | K69: 0.00E+00 | L69: 3.12E-07 | M69: 3.58E-07 | N69: 0.00E+00 | O69: 3.58E-07 | P69: points
A70: N2O | B70: 5.27E-07 | F70: Ecosystem Quality - Total | G70: 1.11E-01 | H70: 3.00E-02 | I70: 1.41E-01 | J70: 2.51E-01 | K70: 3.00E-02 | L70: 2.81E-01 | M70: 6.68E-01 | N70: 4.00E-02 | O70: 7.08E-01 | P70: points
A71: CH4 | B71: 2.24E-05 | F71: Ecosystem Quality - Urban Land Occupation | G71: 0.00E+00 | H71: 0.00E+00 | I71: 0.00E+00 | J71: 0.00E+00 | K71: 0.00E+00 | L71: 0.00E+00 | M71: 0.00E+00 | N71: 0.00E+00 | O71: 0.00E+00 | P71: points
A72: Pollutants - kg/MW-h Electricity Delivered | F72: Human Health - Climate Change | G72: 2.15E+00 | H72: 5.40E-01 | I72: 2.69E+00 | J72: 3.00E+00 | K72: 3.80E-01 | L72: 3.38E+00 | M72: 5.35E+00 | N72: 2.90E-01 | O72: 5.64E+00 | P72: points
A73: Pb | B73: 1.05E-10 | F73: Human Health - Human Toxicity | G73: 9.14E-04 | H73: 0.00E+00 | I73: 9.14E-04 | J73: 8.04E-04 | K73: 0.00E+00 | L73: 8.04E-04 | M73: 5.12E-04 | N73: 0.00E+00 | O73: 5.12E-04 | P73: points
A74: Hg | B74: 7.43E-12 | F74: Human Health - Ionising Radiation | G74: 0.00E+00 | H74: 0.00E+00 | I74: 0.00E+00 | J74: 0.00E+00 | K74: 0.00E+00 | L74: 0.00E+00 | M74: 0.00E+00 | N74: 0.00E+00 | O74: 0.00E+00 | P74: points
A75: NH3 | B75: 5.46E-07 | F75: Human Health - Ozone Depletion | G75: 0.00E+00 | H75: 0.00E+00 | I75: 0.00E+00 | J75: 0.00E+00 | K75: 0.00E+00 | L75: 0.00E+00 | M75: 0.00E+00 | N75: 0.00E+00 | O75: 0.00E+00 | P75: points
A76: CO | B76: 8.73E-05 | F76: Human Health - Particulate Matter Formation | G76: 2.82E-01 | H76: 1.10E-01 | I76: 3.92E-01 | J76: 5.00E-01 | K76: 1.90E-01 | L76: 6.90E-01 | M76: 4.50E-01 | N76: 1.70E-01 | O76: 6.20E-01 | P76: points
A77: NOx | B77: 2.12E-04 | F77: Human Health - Photochemical Oxidant Formation | G77: 2.01E-04 | H77: 0.00E+00 | I77: 2.01E-04 | J77: 3.55E-04 | K77: 0.00E+00 | L77: 3.55E-04 | M77: 3.20E-04 | N77: 0.00E+00 | O77: 3.20E-04 | P77: points
A78: SOx | B78: 1.49E-05 | F78: Human Health - Total | G78: 2.44E+00 | H78: 6.40E-01 | I78: 3.08E+00 | J78: 3.50E+00 | K78: 5.70E-01 | L78: 4.07E+00 | M78: 5.80E+00 | N78: 4.60E-01 | O78: 6.26E+00 | P78: points
A79: NMVOC | B79: 8.16E-06 | F79: Resources - Fossil Depletion | G79: 1.78E+01 | H79: 2.50E-01 | I79: 1.81E+01 | J79: 1.78E+01 | K79: 2.50E-01 | L79: 1.81E+01 | M79: 1.39E+01 | N79: 2.00E-01 | O79: 1.41E+01 | P79: points
A80: Dust | B80: 4.81E-05 | F80: Resources - Metal Depletion | G80: 0.00E+00 | H80: 0.00E+00 | I80: 0.00E+00 | J80: 0.00E+00 | K80: 0.00E+00 | L80: 0.00E+00 | M80: 0.00E+00 | N80: 0.00E+00 | O80: 0.00E+00 | P80: points
A81: WATER (kg) | B81: 1.13E-02 | F81: Resources - Total | G81: 1.78E+01 | H81: 2.50E-01 | I81: 1.81E+01 | J81: 1.78E+01 | K81: 2.50E-01 | L81: 1.81E+01 | M81: 1.39E+01 | N81: 2.00E-01 | O81: 1.41E+01 | P81: points
F82: Total | G82: 2.04E+01 | H82: 9.24E-01 | I82: 2.13E+01 | J82: 2.16E+01 | K82: 8.53E-01 | L82: 2.24E+01 | M82: 2.03E+01 | N82: 6.93E-01 | O82: 2.10E+01 | P82: points

Sheet SOFC-4
A1: SOFC - Case 4
A5: Plant efficiency | B5: 60.30%
A6: Carbon Capture? | B6: YES
A7: Transmission Losses? | B7: YES
F8: Flow Inventory
A9: Emissions Data - NO CCS - AVERAGE Gas | F9: Inputs
A10: GHG Emissions - kg/MW-h Electricity Delivered | F10: Flow | G10: Flow property | H10: Unit | I10: Operation | J10: Stack Construction | K10: Total | L10: Flow type
A11: CO2 | B11: 3.62E+00 | F11: Chromium: 25.5% (chromite); 11.6% (crude ore) | G11: Mass | H11: kg | I11: 0.00E+00 | J11: 3.06E-01 | K11: =J11+I11 -> 3.06E-01 | L11: Resource (in-ground)
A12: N2O | B12: N/A | F12: Coal (hard) | G12: Mass | H12: kg | I12: 0.00E+00 | J12: 3.23E+00 | K12: =J12+I12 -> 3.23E+00 | L12: Resource (in-ground)
A13: CH4 | B13: 9.97E-05 | F13: Iron: 46% (ore); 25% (crude ore) | G13: Mass | H13: kg | I13: 0.00E+00 | J13: 7.46E-01 | K13: 7.46E-01 | L13: Resource (in-ground)
A14: Pollutants - kg/MW-h Electricity Delivered | F14: Natural Gas (44.1 MJ/kg) | G14: Mass | H14: kg | I14: 1.56E+02 | J14: 7.41E-01 | K14: 1.56E+02 | L14: Resource (in-ground)
A15: Pb | B15: N/A | F15: Nickel: 1.13% (sulfide); Ni 0.76% and Cu 0.76% (crude ore) | G15: Mass | H15: kg | I15: 0.00E+00 | J15: 9.99E-02 | K15: 9.99E-02 | L15: Resource (in-ground)
A16: Hg | B16: N/A | F16: Oil (crude) | G16: Mass | H16: kg | I16: 0.00E+00 | J16: 4.91E-02 | K16: 4.91E-02 | L16: Resource (in-ground)
A17: NH3 | B17: N/A | F17: Uranium (mined) | G17: Mass | H17: kg | I17: 0.00E+00 | J17: 1.24E-05 | K17: 1.24E-05 | L17: Resource (in-ground)
A18: CO | B18: 6.79E-05 | F18: Water (unspecified natural origin) | G18: Volume | H18: m3 | I18: 9.10E+01 | J18: 0.00E+00 | K18: 9.10E+01 | L18: Resource (in-ground)
A19: NOx | B19: N/A
A20: SOx | B20: N/A
A21: NMVOC | B21: 1.89E-03 | F21: Outputs
A22: Dust | B22: N/A | F22: Flow | G22: Flow property | H22: Unit | I22: Operation | J22: Stack Construction | K22: Total | L22: Flow type
A23: H2 | B23: 3.15E-04 | F23: Ammonia (NH3) | G23: Mass | H23: kg | I23: 1.53E-03 | J23: 0.00E+00 | K23: =SUM(I23:J23) -> 1.53E-03 | L23: Emission (to air)
A24: WATER (kg) | B24: 9.52E+00 | F24: Carbon Dioxide (CO2) | G24: Mass | H24: kg | I24: 2.26E+01 | J24: 1.08E+01 | K24: =SUM(I24:J24) -> 3.34E+01 | L24: Emission (to air)
F25: Carbon Monoxide (CO) | G25: Mass | H25: kg | I25: 7.38E-02 | J25: 3.28E-03 | K25: 7.70E-02 | L25: Emission (to air)
F26: Dinitrogen Monoxide (N2O) | G26: Mass | H26: kg | I26: 5.17E-04 | J26: 1.60E-04 | K26: 6.78E-04 | L26: Emission (to air)
A27: Emissions Data - NO CCS - AVERAGE Gas | F27: Hydrogen (H2) | G27: Mass | H27: kg | I27: 3.15E-04 | J27: 0.00E+00 | K27: 3.15E-04 | L27: Emission (to air)
A28: GHG Emissions - g/MJ Electricity Delivered | F28: Lead (Pb) | G28: Mass | H28: kg | I28: 1.02E-06 | J28: 0.00E+00 | K28: 1.02E-06 | L28: Emission (to air)
A29: CO2 | B29: 1.00E+00 | F29: Mercury (Hg) | G29: Mass | H29: kg | I29: 4.92E-08 | J29: 0.00E+00 | K29: 4.92E-08 | L29: Emission (to air)
A30: N2O | B30: N/A | F30: Methane (CH4) | G30: Mass | H30: kg | I30: 2.20E+00 | J30: 2.13E-04 | K30: 2.20E+00 | L30: Emission (to air)
A31: CH4 | B31: 2.77E-05 | F31: Nitrogen Oxides (NOx) | G31: Mass | H31: kg | I31: 2.85E-01 | J31: 9.94E-03 | K31: 2.95E-01 | L31: Emission (to air)
A32: Pollutants - g/MJ Electricity Delivered | F32: NMVOC (non-methane volatile organics) | G32: Mass | H32: kg | I32: 1.86E-02 | J32: 0.00E+00 | K32: 1.86E-02 | L32: Emission (to air)
A33: Pb | B33: N/A | F33: Particulates > 2.5 μm and < 10 μm | G33: Mass | H33: kg | I33: 3.64E-03 | J33: 2.11E-02 | K33: 2.47E-02 | L33: Emission (to air)
A34: Hg | B34: N/A | F34: SOFC Plant Electricity | G34: Energy | H34: MJ | I34: 3.60E+03 | J34: 0.00E+00 | K34: 3.60E+03 | L34: Product
A35: NH3 | B35: N/A | F35: Sulfur dioxide (SO2) | G35: Mass | H35: kg | I35: 1.47E-02 | J35: 2.73E-02 | K35: 4.20E-02 | L35: Emission (to air)
A36: CO | B36: 1.89E-05
A37: NOx | B37: N/A
A38: SOx | B38: N/A | F38: Mid-Point Characterizations | G38: Egalitarian (E) | J38: Heirarchist (H) | M38: Individualist (I)
A39: NMVOC | B39: 5.25E-04 | F39: Mid-Point Inventory | G39: Operation | H39: Stack Construction | I39: Total | J39: Operation | K39: Stack Construction | L39: Total | M39: Operation | N39: Stack Construction | O39: Total | P39: Units
A40: Dust | F40: Agricultural Land Occupation - ALOP | G40: 0.00E+00 | H40: 0.00E+00 | I40: =SUM(G40:H40) -> 0.00E+00 | J40: 0.00E+00 | K40: 0.00E+00 | L40: =SUM(J40:K40) -> 0.00E+00 | M40: 0.00E+00 | N40: 0.00E+00 | O40: =SUM(M40:N40) -> 0.00E+00 | P40: m2
A41: H2 | B41: 8.76E-05 | F41: Climate Change - GWP | G41: 3.94E+01 | H41: 9.16E+00 | I41: 4.85E+01 | J41: 7.77E+01 | K41: 9.18E+00 | L41: 8.69E+01 | M41: 1.81E+02 | N41: 9.19E+00 | O41: 1.90E+02 | P41: kg CO2-Eq
A42: WATER (kg) | B42: 2.64E+00 | F42: Fossil Depletion - FDP | G42: 1.42E+02 | H42: 1.87E+00 | I42: 1.44E+02 | J42: 1.42E+02 | K42: 1.87E+00 | L42: 1.44E+02 | M42: 1.42E+02 | N42: 1.87E+00 | O42: 1.44E+02 | P42: kg oil-Eq
F43: Freshwater Ecotoxicity - FETP | G43: 7.37E-07 | H43: 0.00E+00 | I43: 7.37E-07 | J43: 1.67E-07 | K43: 0.00E+00 | L43: 1.67E-07 | M43: 1.67E-07 | N43: 0.00E+00 | O43: 1.67E-07 | P43: kg 1,4-DCB-Eq
A44: CO2 Sequestration Data (units in kg/MW-h) | F44: Freshwater Eutrophication - FEP | G44: 0.00E+00 | H44: 0.00E+00 | I44: 0.00E+00 | J44: 0.00E+00 | K44: 0.00E+00 | L44: 0.00E+00 | M44: 0.00E+00 | N44: 0.00E+00 | O44: 0.00E+00 | P44: kg P-Eq
A45: Total CO2 potentially emitted | B45: 2.99E+02 | F45: Human Toxicity - HTP | G45: 8.39E-02 | H45: 0.00E+00 | I45: 8.39E-02 | J45: 4.16E-02 | K45: 0.00E+00 | L45: 4.16E-02 | M45: 2.95E-02 | N45: 0.00E+00 | O45: 2.95E-02 | P45: kg 1,4-DCB-Eq
A46: CO2 captured | B46: 2.95E+02 | F46: Ionising Radiation - IRP_HE | G46: 0.00E+00 | H46: 0.00E+00 | I46: 0.00E+00 | J46: 0.00E+00 | K46: 0.00E+00 | L46: 0.00E+00 | M46: 0.00E+00 | N46: 0.00E+00 | O46: 0.00E+00 | P46: kg U235-Eq
A47: CO2 fugitive | B47: 3.62E+00 | F47: Marine Ecotoxicity - METP | G47: 3.83E-03 | H47: 0.00E+00 | I47: 3.83E-03 | J47: 3.07E-05 | K47: 0.00E+00 | L47: 3.07E-05 | M47: 3.07E-05 | N47: 0.00E+00 | O47: 3.07E-05 | P47: kg 1,4-DCB-Eq
A48: CO2 uncaptured | B48: 6.42E-01 | F48: Marine Eutrophication - MEP | G48: 1.12E-02 | H48: 0.00E+00 | I48: 1.12E-02 | J48: 1.12E-02 | K48: 0.00E+00 | L48: 1.12E-02 | M48: 1.12E-02 | N48: 0.00E+00 | O48: 1.12E-02 | P48: kg N-Eq
A49: Total CO2 emitted | B49: 4.26E+00 | F49: Metal Depletion - MDP | G49: 0.00E+00 | H49: 8.15E+00 | I49: 8.15E+00 | J49: 0.00E+00 | K49: 8.15E+00 | L49: 8.15E+00 | M49: 0.00E+00 | N49: 8.15E+00 | O49: 8.15E+00 | P49: kg Fe-Eq
F50: Natural land Transformation - NLTP | G50: 0.00E+00 | H50: 0.00E+00 | I50: 0.00E+00 | J50: 0.00E+00 | K50: 0.00E+00 | L50: 0.00E+00 | M50: 0.00E+00 | N50: 0.00E+00 | O50: 0.00E+00 | P50: m2
A51: Pipeline Emissions Data - CCS - AVERAGE Gas | F51: Ozone Depletion - ODP | G51: 0.00E+00 | H51: 0.00E+00 | I51: 0.00E+00 | J51: 0.00E+00 | K51: 0.00E+00 | L51: 0.00E+00 | M51: 0.00E+00 | N51: 0.00E+00 | O51: 0.00E+00 | P51: kg CFC-11-Eq
A52: GHG Emissions -kg/kg CO2 Sequestered | F52: Particulate Matter Formation - PMFP | G52: 6.98E-02 | H52: 2.00E-02 | I52: 8.98E-02 | J52: 6.98E-02 | K52: 2.00E-02 | L52: 8.98E-02 | M52: 6.98E-02 | N52: 2.00E-02 | O52: 8.98E-02 | P52: kg PM10-Eq
A53: CO2 | B53: 9.50E-05 | F53: Photochemical Oxidant Formation - POFP | G53: 3.30E-01 | H53: 1.00E-02 | I53: 3.40E-01 | J53: 3.30E-01 | K53: 1.00E-02 | L53: 3.40E-01 | M53: 3.30E-01 | N53: 1.00E-02 | O53: 3.40E-01 | P53: kg NMVOC
A54: N2O | B54: 1.92E-09 | F54: Terrestrial Acidification - TAP | G54: 2.21E-01 | H54: 3.00E-02 | I54: 2.51E-01 | J54: 1.78E-01 | K54: 3.00E-02 | L54: 2.08E-01 | M54: 1.57E-01 | N54: 3.00E-02 | O54: 1.87E-01 | P54: kg SO2-Eq
A55: CH4 | B55: 8.16E-08 | F55: Terrestrial Ecotoxicity - TETP | G55: 9.25E-05 | H55: 0.00E+00 | I55: 9.25E-05 | J55: 5.10E-06 | K55: 0.00E+00 | L55: 5.10E-06 | M55: 5.10E-06 | N55: 0.00E+00 | O55: 5.10E-06 | P55: kg 1,4-DCB-Eq
A56: Pollutants - kg/kg CO2 Sequestered | F56: Urban Land Occupation - ULOP | G56: 0.00E+00 | H56: 0.00E+00 | I56: 0.00E+00 | J56: 0.00E+00 | K56: 0.00E+00 | L56: 0.00E+00 | M56: 0.00E+00 | N56: 0.00E+00 | O56: 0.00E+00 | P56: m2
A57: Pb | B57: 3.81E-13 | F57: Water Depletion - WDP | G57: 9.10E+01 | H57: 0.00E+00 | I57: 9.10E+01 | J57: 9.10E+01 | K57: 0.00E+00 | L57: 9.10E+01 | M57: 9.10E+01 | N57: 0.00E+00 | O57: 9.10E+01 | P57: m3
A58: Hg | B58: 2.70E-14
A59: NH3 | B59: 1.98E-09
A60: CO | B60: 3.18E-07 | F60: End-Point Characterizations | G60: Egalitarian (E) | J60: Heirarchist (H) | M60: Individualist (I)
A61: NOx | B61: 7.72E-07 | F61: End-Point Category | G61: Operation | H61: Stack Construction | I61: Total | J61: Operation | K61: Stack Construction | L61: Total | M61: Operation | N61: Stack Construction | O61: Total | P61: Units
A62: SOx | B62: 5.43E-08 | F62: Ecosystem Quality - Agricultural Land Occupation | G62: 0.00E+00 | H62: 0.00E+00 | I62: =SUM(G62:H62) -> 0.00E+00 | J62: 0.00E+00 | K62: 0.00E+00 | L62: =SUM(J62:K62) -> 0.00E+00 | M62: 0.00E+00 | N62: 0.00E+00 | O62: =SUM(M62:N62) -> 0.00E+00 | P62: points
A63: NMVOC | B63: 2.97E-08 | F63: Ecosystem Quality - Climate Change | G63: 1.19E-01 | H63: 3.00E-02 | I63: 1.49E-01 | J63: 2.69E-01 | K63: 3.00E-02 | L63: 2.99E-01 | M63: 7.18E-01 | N63: 4.00E-02 | O63: 7.58E-01 | P63: points
A64: Dust | B64: 1.75E-07 | F64: Ecosystem Quality - Freshwater Ecotoxicity | G64: 1.02E-10 | H64: 0.00E+00 | I64: 1.02E-10 | J64: 6.26E-11 | K64: 0.00E+00 | L64: 6.26E-11 | M64: 7.18E-11 | N64: 0.00E+00 | O64: 7.18E-11 | P64: points
A65: WATER (kg) | B65: 4.12E-05 | F65: Ecosystem Quality - Freshwater Eutrophication | G65: 0.00E+00 | H65: 0.00E+00 | I65: 0.00E+00 | J65: 0.00E+00 | K65: 0.00E+00 | L65: 0.00E+00 | M65: 0.00E+00 | N65: 0.00E+00 | O65: 0.00E+00 | P65: points
F66: Ecosystem Quality - Marine Ecotoxicity | G66: 1.09E-07 | H66: 0.00E+00 | I66: 1.09E-07 | J66: 2.36E-09 | K66: 0.00E+00 | L66: 2.36E-09 | M66: 2.71E-09 | N66: 0.00E+00 | O66: 2.71E-09 | P66: points
A67: Pipeline Emissions Data - CCS - AVERAGE Gas | F67: Ecosystem Quality - Natural Land Transformation | G67: 0.00E+00 | H67: 0.00E+00 | I67: 0.00E+00 | J67: 0.00E+00 | K67: 0.00E+00 | L67: 0.00E+00 | M67: 0.00E+00 | N67: 0.00E+00 | O67: 0.00E+00 | P67: points
A68: GHG Emissions -kg/MW-h Electricity Delivered | F68: Ecosystem Quality - Terrestrial Acidification | G68: 5.08E-04 | H68: 0.00E+00 | I68: 5.08E-04 | J68: 4.50E-04 | K68: 0.00E+00 | L68: 4.50E-04 | M68: 1.19E-04 | N68: 0.00E+00 | O68: 1.19E-04 | P68: points
A69: CO2 | B69: 2.80E-02 | F69: Ecosystem Quality - Terrestrial Ecotoxicity | G69: 2.25E-06 | H69: 0.00E+00 | I69: 2.25E-06 | J69: 3.35E-07 | K69: 0.00E+00 | L69: 3.35E-07 | M69: 3.84E-07 | N69: 0.00E+00 | O69: 3.84E-07 | P69: points
A70: N2O | B70: 5.64E-07 | F70: Ecosystem Quality - Total | G70: 1.19E-01 | H70: 3.00E-02 | I70: 1.49E-01 | J70: 2.69E-01 | K70: 3.00E-02 | L70: 2.99E-01 | M70: 7.18E-01 | N70: 4.00E-02 | O70: 7.58E-01 | P70: points
A71: CH4 | B71: 2.40E-05 | F71: Ecosystem Quality - Urban Land Occupation | G71: 0.00E+00 | H71: 0.00E+00 | I71: 0.00E+00 | J71: 0.00E+00 | K71: 0.00E+00 | L71: 0.00E+00 | M71: 0.00E+00 | N71: 0.00E+00 | O71: 0.00E+00 | P71: points
A72: Pollutants - kg/MW-h Electricity Delivered | F72: Human Health - Climate Change | G72: 2.31E+00 | H72: 5.40E-01 | I72: 2.85E+00 | J72: 3.23E+00 | K72: 3.80E-01 | L72: 3.61E+00 | M72: 5.75E+00 | N72: 2.90E-01 | O72: 6.04E+00 | P72: points
A73: Pb | B73: 1.12E-10 | F73: Human Health - Human Toxicity | G73: 9.83E-04 | H73: 0.00E+00 | I73: 9.83E-04 | J73: 8.64E-04 | K73: 0.00E+00 | L73: 8.64E-04 | M73: 5.51E-04 | N73: 0.00E+00 | O73: 5.51E-04 | P73: points
A74: Hg | B74: 7.95E-12 | F74: Human Health - Ionising Radiation | G74: 0.00E+00 | H74: 0.00E+00 | I74: 0.00E+00 | J74: 0.00E+00 | K74: 0.00E+00 | L74: 0.00E+00 | M74: 0.00E+00 | N74: 0.00E+00 | O74: 0.00E+00 | P74: points
A75: NH3 | B75: 5.84E-07 | F75: Human Health - Ozone Depletion | G75: 0.00E+00 | H75: 0.00E+00 | I75: 0.00E+00 | J75: 0.00E+00 | K75: 0.00E+00 | L75: 0.00E+00 | M75: 0.00E+00 | N75: 0.00E+00 | O75: 0.00E+00 | P75: points
A76: CO | B76: 9.35E-05 | F76: Human Health - Particulate Matter Formation | G76: 3.04E-01 | H76: 1.10E-01 | I76: 4.14E-01 | J76: 5.37E-01 | K76: 1.90E-01 | L76: 7.27E-01 | M76: 4.84E-01 | N76: 1.70E-01 | O76: 6.54E-01 | P76: points
A77: NOx | B77: 2.27E-04 | F77: Human Health - Photochemical Oxidant Formation | G77: 2.16E-04 | H77: 0.00E+00 | I77: 2.16E-04 | J77: 3.82E-04 | K77: 0.00E+00 | L77: 3.82E-04 | M77: 3.44E-04 | N77: 0.00E+00 | O77: 3.44E-04 | P77: points
A78: SOx | B78: 1.60E-05 | F78: Human Health - Total | G78: 2.62E+00 | H78: 6.40E-01 | I78: 3.26E+00 | J78: 3.76E+00 | K78: 5.70E-01 | L78: 4.33E+00 | M78: 6.23E+00 | N78: 4.60E-01 | O78: 6.69E+00 | P78: points
A79: NMVOC | B79: 8.73E-06 | F79: Resources - Fossil Depletion | G79: 1.92E+01 | H79: 2.50E-01 | I79: 1.94E+01 | J79: 1.92E+01 | K79: 2.50E-01 | L79: 1.94E+01 | M79: 1.49E+01 | N79: 2.00E-01 | O79: 1.51E+01 | P79: points
A80: Dust | B80: 5.15E-05 | F80: Resources - Metal Depletion | G80: 0.00E+00 | H80: 0.00E+00 | I80: 0.00E+00 | J80: 0.00E+00 | K80: 0.00E+00 | L80: 0.00E+00 | M80: 0.00E+00 | N80: 0.00E+00 | O80: 0.00E+00 | P80: points
A81: WATER (kg) | B81: 1.21E-02 | F81: Resources - Total | G81: 1.92E+01 | H81: 2.50E-01 | I81: 1.94E+01 | J81: 1.92E+01 | K81: 2.50E-01 | L81: 1.94E+01 | M81: 1.49E+01 | N81: 2.00E-01 | O81: 1.51E+01 | P81: points
F82: Total | G82: 2.19E+01 | H82: 9.24E-01 | I82: 2.28E+01 | J82: 2.32E+01 | K82: 8.53E-01 | L82: 2.41E+01 | M82: 2.19E+01 | N82: 6.93E-01 | O82: 2.25E+01 | P82: points

Sheet Monte Carlo Results
A1: Monte Carlo Sensitivity Results
A5: Historgram Data
A6: Bin (End Points) | B6: NGCC-1 | C6: NGCC-3 | D6: SOFC-1 | E6: SOFC-3
A7: 0 | B7: 48 | C7: 139 | D7: 58 | E7: 187
A8: 0-2.5 | B8: 94 | C8: 205 | D8: 119 | E8: 339
A9: 2.5-5 | B9: 141 | C9: 265 | D9: 196 | E9: 526
A10: 5-7.5 | B10: 212 | C10: 380 | D10: 309 | E10: 782
A11: 7.5-10 | B11: 255 | C11: 477 | D11: 448 | E11: 1088
A12: 10-12.5 | B12: 374 | C12: 630 | D12: 641 | E12: 1305
A13: 12.5-15 | B13: 518 | C13: 730 | D13: 760 | E13: 1356
A14: 15-17.5 | B14: 517 | C14: 877 | D14: 977 | E14: 1217
A15: 17.5-20 | B15: 729 | C15: 834 | D15: 992 | E15: 1026
A16: 20-22.5 | B16: 754 | C16: 943 | D16: 1107 | E16: 825
A17: 22.5-25 | B17: 758 | C17: 833 | D17: 967 | E17: 567
A18: 25-27.5 | B18: 870 | C18: 748 | D18: 911 | E18: 325
A19: 27.5-30 | B19: 784 | C19: 681 | D19: 790 | E19: 183
A20: 30-32.5 | B20: 750 | C20: 584 | D20: 608 | E20: 68
A21: 32.5-35 | B21: 709 | C21: 473 | D21: 386 | E21: 41
A22: 35-37.5 | B22: 615 | C22: 345 | D22: 285 | E22: 11
A23: 37.5-40 | B23: 507 | C23: 245 | D23: 179 | E23: 6
A24: 40-42.5 | B24: 392 | C24: 177 | D24: 118 | E24: 2
A25: 42.5-45 | B25: 285 | C25: 106 | D25: 56 | E25: 0
A26: 45-47.5 | B26: 212 | C26: 67 | D26: 19 | E26: 0
A27: 47.5-50 | B27: 142 | C27: 27 | D27: 16 | E27: 0
A28: 50-52.5 | B28: 116 | C28: 28 | D28: 8 | E28: 0
A29: 52.5-55 | B29: 66 | C29: 11 | D29: 1 | E29: 0
A30: 55-57.5 | B30: 40 | C30: 5 | D30: 0 | E30: 0
A31: 57.5-60 | B31: 14 | C31: 3 | D31: 0 | E31: 0
A32: 60-62.5 | B32: 17 | C32: 2 | D32: 0 | E32: 0
A33: 62.5-65 | B33: 8 | C33: 0 | D33: 0 | E33: 0
A34: 65-67.5 | B34: 2 | C34: 0 | D34: 0 | E34: 0
A35: 67.5-70 | B35: 1 | C35: 0 | D35: 0 | E35: 0
